Cogmind - Beta 11.1 @@@ ROGUE MODE // 2022.05.18 @ 19:50:39 Player: ktur Result: Destroyed by C-57 Dissector with Dual-blade Saw Performance ------------- Evolutions (8) 4000 Regions Visited (32) 6400 Robots Destroyed (373) 1865 Value Destroyed (13961) 13961 Prototype IDs (104) 2080 Alien Tech Used (3) 600 Bonus (8746) 8746 TOTAL SCORE: 37652 Bonus ------- High Alert Combat Kills 225 Follower Combat Kills 1942 Network Hubs Disabled 600 Met Data Miner 300 Met Zhirov 300 Met Warlord at Base 500 MAIN.C Attacked Warlord 500 Built Enhanced Grunts 300 A7 Reached Mainframe 300 Met R17 at Cetus 500 Met R17 at Research 2000 Met Warlord at Research 2000 Scanned by Researcher 500 Pursued by Intercept 500 Friendly Fire -1721 Cogmind --------- Core Integrity 0/1450 Matter 300/300 Energy 67/100 System Corruption 21% Temperature Cool (0) Movement Core (50) Location -2/Section 7 Parts ------- > --- POWER (3) -------- (None) > --- PROPULSION (7) --- (None) > --- UTILITY (11) ----- Experimental Terrain Scan Processor Experimental Core Analyzer Improved Armor Integrity Analyzer > --- WEAPON (2) ------- (None) > --- INVENTORY (5) ---- Integrity Redistributor Integrity Redistributor Subatomic Replicator Vortex Driver (30) Vortex Driver (30) Peak State ------------ > --- POWER ------------ Light Quantum Reactor Improved Quantum Reactor Improved Quantum Reactor > --- PROPULSION ------- Improved Antigrav System Combat Linear Gravjet Combat Linear Gravjet Combat Linear Gravjet Combat Linear Gravjet Combat Linear Gravjet Combat Linear Gravjet > --- UTILITY ---------- 2N-1CE's Frost Array High-capacity Storage Unit Experimental Sensor Array Experimental Signal Interpreter Experimental Terrain Scan Processor Experimental Core Analyzer Experimental Hacking Suite Experimental Hacking Suite Experimental Hacking Suite System Mapper Authchip [Armor] > --- WEAPON ----------- Cooled Nova Cannon Hypervelocity Multirail > --- INVENTORY -------- Advanced Energy Well Advanced Energy Well Experimental Matter Compressor Experimental Terrain Scanner Precision Energy Filter Advanced Weapon Cycler Improved Transmission Jammer Experimental Phase Shifter Advanced Cloaking Device Antimissile System Authchip [Power] Authchip [Propulsion] Authchip [Device] Authchip [Device] Dimensional Node Initializer Vortex Driver Vortex Driver Tri-rail Accelerator Tiamat Missile Launcher [Rating: 214] Favorites ----------- Power Heavy Ion Engine Engine Heavy Ion Engine Power Core Neutrino Core Reactor Light Quantum Reactor Propulsion Combat Linear Gravjet Treads Light Treads Hover Unit Combat Linear Gravjet Flight Unit Improved Flight Unit Utility Experimental Hacking Suite Device Experimental Sensor Array Storage High-capacity Storage Unit Processor Advanced Signal Interpreter Hackware Experimental Hacking Suite Protection Experimental Utility Shielding Weapon Improved Assault Rifle Energy Gun Spread Laser Energy Cannon Cooled Nova Cannon Ballistic Gun Improved Assault Rifle Ballistic Cannon Tri-rail Accelerator Launcher Mini Smartbomb Launcher Special Weapon Plasma Cutter Impact Weapon Mace Slashing Weapon Katana Piercing Weapon Lance Special Melee Weapon Improved Datajack Build | -11 -10 -10 -9 -9 -8 -7 -7 -7 -7 -6 -6 -6 -6 -6 -6 -5 -5 -5 -5 -4 -4 -4 -4 -4 -4 -4 -3 -3 -3 -2 -2 -2 ------- Run | Scr Mat Min Mat Min Mat Fac Low Low Dat Pro Fac Ext Cet Arc Hub Fac Upp Upp Zhi Pro Fac Was Fac Upp Upp War Pro Res Tes Res Qua Sec Slots Evolved 16 | . . . 2 . 2 2 . . . . 2 . . . . 2 . . . . 2 . . . . . . 2 . 2 . . Power 2 | . . . . . . . . . . . . . . . . . . . . . 1 . . . . . . . . 1 . . Propulsion 5 | . . . 1 . . 1 . . . . . . . . . 1 . . . . 1 . . . . . . . . 1 . . Utility 9 | . . . 1 . 2 1 . . . . 2 . . . . 1 . . . . . . . . . . . 2 . . . . Weapon . | . . . . . . . . . . . . . . . . . . . . . . . . . . . . . . . . . Parts Attached 626 | 6 18 1 52 3 33 34 . 4 1 5 39 8 13 10 4 69 18 2 5 1 16 . 68 2 15 11 2 12 39 46 36 53 Power 54 | 1 1 1 4 . 1 3 . . . . 2 1 . 2 . 1 . . . 1 2 . 8 . . . . 3 4 10 6 3 Engine 13 | 1 1 1 4 . 1 1 . . . . . . . 1 . 1 . . . . 1 . . . . . . . 1 . . . Core 15 | . . . . . . 2 . . . . 2 1 . 1 . . . . . 1 . . 5 . . . . . 2 1 . . Reactor 26 | . . . . . . . . . . . . . . . . . . . . . 1 . 3 . . . . 3 1 9 6 3 Propulsion 101 | 2 3 . 14 1 15 11 . . . 1 . 1 . . 1 10 . . . . 5 . 14 . . 2 . 2 5 4 8 2 Treads 32 | 2 3 . 13 1 13 . . . . . . . . . . . . . . . . . . . . . . . . . . . Leg . | . . . . . . . . . . . . . . . . . . . . . . . . . . . . . . . . . Wheel . | . . . . . . . . . . . . . . . . . . . . . . . . . . . . . . . . . Hover 67 | . . . . . 1 11 . . . 1 . 1 . . 1 10 . . . . 5 . 14 . . 2 . 2 5 4 8 2 Flight 2 | . . . 1 . 1 . . . . . . . . . . . . . . . . . . . . . . . . . . . Utility 283 | 1 3 . 10 . 12 15 . 2 1 2 29 3 11 6 3 28 4 2 5 . 6 . 32 2 8 7 2 7 18 23 17 24 Device 160 | . 1 . 4 . 2 8 . 1 . 1 12 3 10 3 2 9 3 1 1 . 4 . 17 1 5 6 1 4 14 19 10 18 Storage 13 | 1 1 . . . 3 1 . . . . 1 . . . 1 1 . . . . 2 . 1 . . . . . . . . 1 Processor 12 | . 1 . 1 . 1 . . . . . 2 . . . . 1 . . . . . . 1 . . . . 1 . 2 1 1 Hackware 37 | . . . . . . 3 . . . . 6 . . 3 . 9 . . 1 . . . 8 . . 1 . 1 2 . 3 . Protection 61 | . . . 5 . 6 3 . 1 1 1 8 . 1 . . 8 1 1 3 . . . 5 1 3 . 1 1 2 2 3 4 Artifact . | . . . . . . . . . . . . . . . . . . . . . . . . . . . . . . . . . Weapon 188 | 2 11 . 24 2 5 5 . 2 . 2 8 3 2 2 . 30 14 . . . 3 . 14 . 7 2 . . 12 9 5 24 Energy Gun 5 | 1 1 . 3 . . . . . . . . . . . . . . . . . . . . . . . . . . . . . Energy Cannon 15 | . . . . . . 1 . . . . . . . . . . . . . . . . . . . 1 . . 4 3 2 4 Ballistic Gun 52 | 1 6 . 14 1 4 1 . . . 1 1 . 1 1 . 1 1 . . . . . 4 . 1 . . . 1 2 1 10 Ballistic Cannon 37 | . . . . . . . . . . . 2 2 1 . . 10 4 . . . 1 . 1 . 1 . . . 1 3 2 9 Launcher 26 | . 2 . . 1 . . . 1 . 1 2 1 . . . 4 4 . . . 1 . 4 . 1 . . . 2 1 . 1 Special Weapon 14 | . 2 . 7 . 1 . . . . . . . . . . 4 . . . . . . . . . . . . . . . . Impact Weapon 1 | . . . . . . 1 . . . . . . . . . . . . . . . . . . . . . . . . . . Slashing Weapon 1 | . . . . . . . . . . . . . . . . . . . . . . . . . 1 . . . . . . . Piercing Weapon 36 | . . . . . . 1 . 1 . . 3 . . 1 . 11 5 . . . 1 . 5 . 3 1 . . 4 . . . Special Melee Weapon 1 | . . . . . . 1 . . . . . . . . . . . . . . . . . . . . . . . . . . Unidentified Prototypes 35 | . . . 4 . 2 1 . . . . 1 . 2 . 1 2 . . 3 . . . . . . 6 . . 5 6 2 . Corrupted Parts 1 | . . . . . . . . . . . . . . . 1 . . . . . . . . . . . . . . . . . System Corruption 6 | . . . . . . . . . . . . . . . 6 . . . . . . . . . . . . . . . . . Parts Lost 48 | . . . 3 . 8 . . . 2 . . . . . . . . . . . 2 . 3 . . . . . 6 3 . 21 Power 11 | . . . . . . . . . . . . . . . . . . . . . 1 . 2 . . . . . 2 2 . 4 Propulsion 11 | . . . 2 . 2 . . . . . . . . . . . . . . . 1 . 1 . . . . . . . . 5 Utility 18 | . . . . . 4 . . . 1 . . . . . . . . . . . . . . . . . . . 2 1 . 10 Weapon 8 | . . . 1 . 2 . . . 1 . . . . . . . . . . . . . . . . . . . 2 . . 2 Highest Loss Streak 20 | . . . 1 . 3 . . . 2 . . . . . . . . . . . 2 . 1 . . . . . 6 1 . 20 To Critical Strikes 1 | . . . . . 1 . . . . . . . . . . . . . . . . . . . . . . . . . . . Average Slot Usage (%) 96 | . 97 100 98 100 96 92 92 92 88 84 95 92 90 98 99 96 99 100 100 100 97 100 97 100 99 99 100 99 91 93 95 92 Engine 5 | . 14 14 10 11 9 1 7 7 7 7 3 . . 1 6 4 5 5 5 3 1 5 1 . . . . . . . . . Core 1 | . . . . . . 5 . . . . 2 6 6 4 . . . . . 1 5 5 5 10 10 10 10 4 3 . . . Reactor 2 | . . . . . . . . . . . . . . . . . . . . . 3 . 2 . . . . 4 5 10 13 10 Treads 10 | . 28 28 32 33 26 . . . . . . . . . . . . . . . . . . . . . . . . . . . Hover 18 | . . . . . . 30 30 30 30 30 26 26 26 26 26 28 29 29 29 29 29 31 30 31 31 31 31 28 27 28 29 28 Device 7 | . 5 . 10 11 2 6 7 6 4 6 6 12 10 12 12 4 5 5 5 5 5 5 4 5 4 4 8 8 9 10 8 11 Storage 8 | . 14 14 11 11 16 7 7 7 7 7 6 6 6 6 6 5 5 5 5 5 5 5 5 5 5 5 5 4 4 4 4 3 Processor 6 | . 5 14 . . 6 7 7 7 7 7 7 13 13 7 6 5 5 5 5 5 5 5 5 5 5 5 5 9 9 12 17 17 Hackware 14 | . . . . . . 22 23 23 21 15 24 13 13 18 20 29 29 29 29 29 26 26 26 26 26 26 26 23 21 18 15 12 Protection 5 | . . . 10 11 15 . . . 2 6 5 6 6 6 6 4 5 4 5 5 5 5 4 5 4 5 2 4 1 . 2 . Ballistic Gun 7 | . 21 28 17 21 17 . . . . . . . . 5 6 . . . . . . . . . . . . . . 1 2 1 Launcher 1 | . . . . . . . . . . . . . . . . 1 3 5 5 5 4 5 4 5 4 5 5 4 1 . . . Piercing Weapon 2 | . . . . . . 5 7 6 5 . 5 . . 5 6 4 4 5 5 5 4 5 4 5 4 5 5 4 1 . . . Naked Turns . | . . . . . . . . . . . . . . . . . . . . . . . . . . . . . . . . . Heaviest Build 113 | 11 50 49 63 63 74 38 28 39 34 33 44 53 54 43 42 46 46 38 38 38 47 42 78 68 84 74 68 72 88 113 110 111 Greatest Support 119 | 40 40 40 63 63 63 35 35 35 35 35 44 44 44 44 45 45 45 45 45 45 55 55 102 102 102 102 94 94 102 118 119 119 Greatest Overweight (x) 13 | . 1 1 1 . 1 1 . 1 . . 1 13 1 13 1 1 1 . . . 1 . 1 . . . . . 2 . . 2 Average Overweight (x) . | . . 1 . . . . . . . . . . . . . . . . . . . . . . . . . . . . . . Largest Inventory Capacity 25 | 8 20 20 20 20 20 20 15 15 15 15 15 15 15 15 15 15 15 15 15 15 25 15 20 20 20 20 20 20 20 20 20 20 Average Capacity 18 | 7 19 20 20 20 19 15 15 15 15 15 15 15 15 15 15 15 15 15 15 15 15 15 19 20 20 20 20 20 20 20 20 19 Most Carried 20 | 7 20 20 20 20 20 20 15 15 15 15 15 15 15 15 15 15 15 15 15 15 15 15 20 20 20 20 20 20 20 20 20 20 Average Carried 17 | 3 19 19 19 20 19 14 15 14 14 14 14 14 14 14 14 14 14 15 14 14 14 15 18 20 19 19 19 19 19 19 19 19 Final Capacity 20 | 8 20 20 20 20 20 15 15 15 15 15 15 15 15 15 15 15 15 15 15 15 15 15 20 20 20 20 20 20 20 20 20 20 Final Carried 20 | 6 20 20 20 20 20 15 15 15 15 15 15 15 15 15 15 15 15 15 15 15 15 15 20 20 20 20 20 20 20 20 20 20 Class Distribution -------------------- 25% | Wizard-Mutant 22% | Hacker-Mutant 22% | Mutant 12% | Scavenger-Mutant 4% | Wizard-Sprinter 3% | Fabricator-Mutant Dominant Class ---------------- Mutant | -10/Materials Mutant | -10/Mines Mutant | -9/Materials Mutant | -9/Mines Scavenger-Mutant | -8/Materials Hacker-Mutant | -7/Factory Hacker-Mutant | -7/Lower Caves Hacker-Mutant | -7/Lower Caves Hacker-Mutant | -7/Data Miner Hacker-Mutant | -6/Proximity Caves Hacker-Mutant | -6/Factory Hacker-Mutant | -6/Extension Hacker-Mutant | -6/Cetus Hacker-Mutant | -6/Archives Hacker-Mutant | -6/Hub_04(d) Wizard-Mutant | -5/Factory Wizard-Mutant | -5/Upper Caves Wizard-Mutant | -5/Upper Caves Wizard-Mutant | -5/Zhirov Wizard-Mutant | -4/Proximity Caves Wizard-Sprinter | -4/Factory Wizard-Sprinter | -4/Waste Wizard-Mutant | -4/Factory Wizard-Mutant | -4/Upper Caves Wizard-Mutant | -4/Upper Caves Wizard-Mutant | -4/Warlord Wizard-Mutant | -3/Proximity Caves Wizard-Mutant | -3/Research Wizard-Scout | -3/Testing Hacker-Mutant | -2/Research Fabricator-Mutant | -2/Quarantine Machinist-Scout | -2/Section 7 Resources | -11 -10 -10 -9 -9 -8 -7 -7 -7 -7 -6 -6 -6 -6 -6 -6 -5 -5 -5 -5 -4 -4 -4 -4 -4 -4 -4 -3 -3 -3 -2 -2 -2 ----------- Run | Scr Mat Min Mat Min Mat Fac Low Low Dat Pro Fac Ext Cet Arc Hub Fac Upp Upp Zhi Pro Fac Was Fac Upp Upp War Pro Res Tes Res Qua Sec Matter Collected 14344 | 194 470 154 1312 194 1007 364 70 83 . 89 608 399 299 166 20 1221 411 103 70 61 315 . 1215 40 404 . 116 259 248 1469 924 2059 Remotely . | . . . . . . . . . . . . . . . . . . . . . . . . . . . . . . . . . Salvage Created 16462 | . 497 98 1943 137 1458 506 132 207 25 58 918 445 172 402 215 2306 199 151 95 . 592 . 1108 . 151 . . 890 261 744 763 1989 Parts 898 | . 38 8 159 1 80 21 . 10 2 4 38 18 4 33 14 119 5 6 . . 33 . 87 . 6 . . 18 11 17 73 93 Haulers Intercepted 26 | . 2 . 4 . 4 3 . . . . 3 . . . . 5 . . . . . . . . . . . 4 . 1 . . Recyclers Shooed 26 | . . 1 10 1 3 1 . . . . 1 4 . . . . . . . . 1 . 1 . . . . 2 . . . 1 Parts Field Recycled . | . . . . . . . . . . . . . . . . . . . . . . . . . . . . . . . . . Retrieved Matter . | . . . . . . . . . . . . . . . . . . . . . . . . . . . . . . . . . Parts Self-Destructed 28 | . . . . . . . . 8 . 3 . . . . . . 5 5 . . . . . 1 6 . . . . . . . Prevented 1 | . . . . . . . . . . . . . . . . . . . . . . . . 1 . . . . . . . . Kills | -11 -10 -10 -9 -9 -8 -7 -7 -7 -7 -6 -6 -6 -6 -6 -6 -5 -5 -5 -5 -4 -4 -4 -4 -4 -4 -4 -3 -3 -3 -2 -2 -2 ------- Run | Scr Mat Min Mat Min Mat Fac Low Low Dat Pro Fac Ext Cet Arc Hub Fac Upp Upp Zhi Pro Fac Was Fac Upp Upp War Pro Res Tes Res Qua Sec Combat Hostiles Destroyed 211 | . 12 2 38 9 21 2 . 4 . 4 1 4 2 2 1 19 5 4 . . 11 . 18 . 8 . . 4 1 6 11 22 Melee 7 | . . . . . . 2 . . . . 1 . . . 1 . . . . . 2 . . . 1 . . . . . . . Guns 106 | . 10 2 35 8 21 . . . . 1 . . . . . . . . . . . . 4 . 1 . . . . 4 11 9 Cannons 34 | . . . . . . . . . . . . 3 2 2 . 10 4 . . . 1 . 1 . . . . . 1 2 . 8 AOE 64 | . 2 . 3 1 . . . 4 . 3 . 1 . . . 9 1 4 . . 8 . 13 . 6 . . 4 . . . 5 Classes Destroyed 20 | . 7 1 2 1 1 1 . . . . . 1 . . . 1 . . . . . . 1 . . . . . . 2 . 2 Worker 35 | . 2 . 1 . 1 4 . . . . . . . . 2 12 . . . . 1 . 7 . . . . . 2 1 . 2 Builder 14 | . . . 3 . 1 . . . . . . 1 . . . 5 . . . . . . 1 . . . . . . . . 3 Tunneler 7 | . . 1 1 . . . . . . . 2 . . . . 1 . . . . 1 . 1 . . . . . . . . . Hauler 26 | . 2 . 4 . 4 3 . . . . 3 . . . . 5 . . . . . . . . . . . 4 . 1 . . Recycler 35 | . 1 . 1 1 2 1 . . . . 4 2 . . 1 7 . . . . 3 . 3 . . . . 3 1 1 . 4 Operator 18 | . 1 . 4 . 2 . . . . . 1 . . 9 . . . . . . . . . . . . . . . . . 1 Watcher 29 | . 2 . 4 . 1 3 . . . . 1 . 2 . . 4 . . . . 1 . 3 . . . . . 2 2 . 4 Swarmer 71 | . 6 . 11 . 3 . . 4 . 4 . 1 . . . 9 . . . . 9 . 12 . 5 . . 4 . . . 3 Cutter 2 | . . . . . . . . . . . . . . . . . . . . . . . 2 . . . . . . . . . Grunt 55 | . 6 2 17 . 13 1 . . . . . 2 . . 1 3 2 4 . . 1 . . . 3 . . . . . . . Brawler 1 | . . . . . . . . . . . . . . . . 1 . . . . . . . . . . . . . . . . Duelist 3 | . . . . . . . . . . . . . . . . . 2 . . . 1 . . . . . . . . . . . Researcher 2 | . . . . . . . . . . . . . . . . . . . . . . . . . . . . . . . . 2 Sentry 27 | . . . 10 . 3 . . . . . . 1 . 2 . 2 1 . . . . . 4 . . . . . . . . 4 Hunter 11 | . . . . . 2 . . . . . . . . . . . . . . . . . . . . . . . 1 4 . 4 Programmer 11 | . . . . . . 1 . . . . 1 . . . . 4 . . . . . . . . . . . . . . . 5 Behemoth 1 | . . . . . . . . . . . . . . . . . . . . . . . . . . . . . . . . 1 Cetus Guard 2 | . . . . . . . . . . . . . 2 . . . . . . . . . . . . . . . . . . . Quarantine Guard 11 | . . . . . . . . . . . . . . . . . . . . . . . . . . . . . . . 11 . S7 Guard 2 | . . . . . . . . . . . . . . . . . . . . . . . . . . . . . . . . 2 Tracker 2 | . . . . . . . . . . . . . . . . . . . . . . . . . . . . . . . . 2 Combat Programmer 1 | . . . . . . . . . . . . . . . . . . . . . . . . . . . . . . . . 1 Striker 2 | . . . . . . . . . . . . . . . . . . . . . . . . . . . . . . 2 . . Executioner 1 | . . . . . . . . . . . . . . . . . . . . . . . . . . . . . . 1 . . Assembled 9 | . . . . 9 . . . . . . . . . . . . . . . . . . . . . . . . . . . . Thug 1 | . . . . . . . . . . . . . 1 . . . . . . . . . . . . . . . . . . . Butcher 2 | . . . . . . . . . . . . 2 . . . . . . . . . . . . . . . . . . . . Best Kill Streak 12 | . 5 2 7 2 5 2 . 4 1 5 2 1 2 6 2 11 3 4 . . 4 . 12 . 5 . . 5 2 3 1 6 Combat Bots Only 8 | . 3 2 5 2 3 1 . 4 . 4 1 1 2 2 1 5 3 4 . . 4 . 8 . 5 . . 4 1 2 1 5 Max Kills in Single Turn 5 | . 2 1 3 1 2 1 . 3 1 3 1 2 1 1 1 4 1 2 . . 3 . 5 . 4 . . 2 1 1 1 3 Gunslinging 1 | . . . 1 . . . . . . . . . . . . . . . . . . . . . . . . . . . . . Exploded 5 | . 1 . 1 1 . . . 3 . 3 . 1 . . . 4 1 2 . . 3 . 5 . 4 . . 2 . . . 3 Melee 1 | . . . . . . 1 . . . . 1 . . . 1 . . . . . 1 . . . 1 . . . . . . . Uniques/NPCs Destroyed 1 | . . . . . . . . . 1 . . . . . . . . . . . . . . . . . . . . . . . Data Miner (-7/Data Miner) Combat | -11 -10 -10 -9 -9 -8 -7 -7 -7 -7 -6 -6 -6 -6 -6 -6 -5 -5 -5 -5 -4 -4 -4 -4 -4 -4 -4 -3 -3 -3 -2 -2 -2 -------- Run | Scr Mat Min Mat Min Mat Fac Low Low Dat Pro Fac Ext Cet Arc Hub Fac Upp Upp Zhi Pro Fac Was Fac Upp Upp War Pro Res Tes Res Qua Sec Damage Taken 14618 | . 503 245 937 196 1836 194 . 68 276 131 70 148 37 23 . 565 . . . . 402 . 1040 . 46 . . 411 1039 1020 496 4935 Core 2768 | . 146 24 92 18 109 76 . 9 50 16 . 89 . . . 101 . . . . 178 . 123 . . . . 129 150 126 64 1268 Absorbed by Shields 433 | . . . 317 74 22 . . . . . . 9 11 . . . . . . . . . . . . . . . . . . . Redirected to Shielding 318 | . . . . . . . . . . . . . 32 . . 51 . . . . . . 80 . . . . 58 97 . . . Regen/Repaired (Parts) 3168 | . 50 . 153 . 428 . . . . . 76 . . . . 470 . . . . 166 . 448 . . . . . 263 . 1026 88 Core Remaining (%) 76 | 100 . 32 . 72 80 . . . . 78 . . . . 89 . . . . 89 . . . . . . 73 . 73 . . . Volleys Fired 913 | . 49 8 149 22 116 3 . 2 . 3 7 40 16 7 . 49 24 3 . 1 10 . 48 . 19 . . 5 16 68 87 161 Largest 2 | . 2 2 2 2 2 1 . 1 . 1 1 1 1 1 . 1 1 1 . 1 1 . 1 . 1 . . 1 1 2 1 1 Hottest 150 | . 85 46 90 46 48 28 . 39 . 39 48 60 60 60 . 60 80 80 . 80 80 . 80 . 80 . . 80 60 150 60 60 Shots Fired 1187 | . 89 16 246 41 224 4 . 2 . 3 8 41 16 7 . 48 25 3 . 1 10 . 49 . 18 . . 5 16 68 87 160 Gun 846 | . 80 16 231 37 223 4 . . . 2 . . . . . 5 8 . . . . . 32 . 6 . . . . 41 79 82 Cannon 265 | . . . . . . . . . . . 8 38 16 7 . 36 16 . . . 5 . 10 . 7 . . . 16 27 8 71 Launcher 54 | . 4 . . 4 . . . 2 . 1 . 3 . . . 6 1 3 . 1 5 . 7 . 5 . . 5 . . . 7 Special 22 | . 5 . 15 . 1 . . . . . . . . . . 1 . . . . . . . . . . . . . . . . Kinetic 1049 | . 67 16 211 37 223 4 . . . 2 8 38 16 7 . 41 24 . . . 5 . 42 . 13 . . . 7 54 83 151 Thermal 63 | . 18 . 15 . 1 . . . . . . . . . . . . . . . . . . . . . . . 9 14 4 2 Explosive 54 | . 4 . . 4 . . . 2 . 1 . 3 . . . 6 1 3 . 1 5 . 7 . 5 . . 5 . . . 7 Electromagnetic 20 | . . . 20 . . . . . . . . . . . . . . . . . . . . . . . . . . . . . Robot Hit Streak 21 | . 7 9 11 4 18 5 . 1 . 1 2 8 9 7 . 10 8 . . . 12 . 19 . 9 . . . 5 7 21 15 Robot Miss Streak 9 | . 6 2 5 3 3 2 . 3 . 1 . 3 5 3 . 6 1 . . . 2 . 3 . 1 . . . 4 9 4 8 Penetration Max 1 | . . . . . . . . . . . . . . . . . . . . . . . 1 . . . . . . 1 . 1 Secondary Targets 11 | . 1 . 5 . 5 . . . . . . . . . . . . . . . . . . . . . . . . . . . Max Gunslinging Chain 1 | . 1 . 1 . 1 . . . . . . . . . . . . . . . . . . . . . . . . . . . Shots Hit Robots 963 | . 59 13 166 21 162 20 3 4 1 1 28 25 14 20 4 86 10 . 3 . 20 . 44 . 11 . . 14 14 44 62 114 Core Hits 622 | . 39 5 78 16 63 12 1 6 1 4 12 23 13 18 4 57 9 12 1 . 19 . 42 . 13 . . 16 8 26 30 94 Critical Kills 49 | . . . 1 1 . . . . . . . . . . . . . . . . . . 5 . 1 . . . 1 8 11 21 Critical Parts Destroyed 48 | . . . 1 . . . . . . . . . . . . . . . . . . . 2 . 1 . . . . 13 14 17 Critical Strikes 124 | . . . 2 1 . . 1 . . . 2 1 1 1 . 8 . . . . . . 10 . 4 . . 3 3 21 27 39 Meltdown 1 | . . . . . . . . . . . . . . . . . . . . . . . . . . . . . 1 . . . Destroy 99 | . . . 2 1 . . . . . . . . . . . . . . . . . . 7 . 2 . . . . 21 27 39 Blast 8 | . . . . . . . . . . . . 1 1 . . 4 . . . . . . . . 1 . . . 1 . . . Impale 16 | . . . . . . . 1 . . . 2 . . 1 . 4 . . . . . . 3 . 1 . . 3 1 . . . Melee Attacks 434 | . . . . . . 58 4 6 1 . 51 . . 14 9 120 18 6 3 6 32 . 56 1 1 . 3 25 20 . . . Impact 6 | . . . . . . 6 . . . . . . . . . . . . . . . . . . . . . . . . . . Slashing . | . . . . . . . . . . . . . . . . . . . . . . . . . . . . . . . . . Piercing 428 | . . . . . . 52 4 6 1 . 51 . . 14 9 120 18 6 3 6 32 . 56 1 1 . 3 25 20 . . . Sneak Attacks 85 | . . . . . . 8 . . 1 . 11 . . 10 4 30 . . . . 6 . 6 . . . . 6 3 . . . Combat Hostiles 1 | . . . . . . . . . . . . . . . 1 . . . . . . . . . . . . . . . . . Follow-up Attacks . | . . . . . . . . . . . . . . . . . . . . . . . . . . . . . . . . . Damage Inflicted 37200 | 4 1201 217 3187 420 2533 914 219 430 63 321 1597 1565 1058 1410 291 6156 630 484 244 . 2004 . 2712 . 1340 . . 1396 634 1103 409 4658 Guns 7720 | . 784 208 2576 293 2500 48 . . . 19 . . . . . . . . . . . . 173 . 21 . . . . 209 409 480 Cannons 10686 | . . . . . . . . . . . 30 1233 1058 429 . 1891 553 . . . 314 . 570 . 201 . . . 356 831 . 3220 Explosions 7583 | . 377 . 463 112 . . . 231 . 302 . 332 . . . 780 77 484 . . 776 . 985 . 1080 . . 563 . 63 . 958 Melee 10893 | . . . . . . 866 219 199 63 . 1567 . . 981 291 3485 . . 244 . 914 . 915 . 38 . . 833 278 . . . Ramming 195 | 4 7 9 69 15 22 . . . . . . . . . . . . . . . . . 69 . . . . . . . . . Kinetic 17551 | . 645 208 2289 293 2500 48 . . . 19 30 1233 1058 429 . 1891 553 . . . 314 . 743 . 222 . . . 184 783 409 3700 Thermal 831 | . 172 . 219 . 11 . . . . . . . . . . . . . . . . . . . . . . . 172 257 . . Explosive 7380 | . 377 . 323 112 . . . 231 . 302 . 332 . . . 780 77 484 . . 776 . 985 . 1080 . . 563 . . . 958 Electromagnetic 350 | . . . 287 . . . . . . . . . . . . . . . . . . . . . . . . . . 63 . . Impact 162 | . . . . . . 162 . . . . . . . . . . . . . . . . . . . . . . . . . . Slashing . | . . . . . . . . . . . . . . . . . . . . . . . . . . . . . . . . . Piercing 10731 | . . . . . . 704 219 199 63 . 1567 . . 981 291 3485 . . 244 . 914 . 915 . 38 . . 833 278 . . . Highest Corruption 21 | . 1 1 2 2 2 5 5 5 5 5 1 3 3 3 6 4 4 4 4 4 . 9 9 9 9 9 . . 2 2 4 21 Average Corruption 3 | . 1 1 2 2 2 4 5 5 5 5 1 3 3 2 6 3 4 4 4 4 . 9 9 9 9 9 . . 2 1 2 7 Corruption Purged 4 | . . . . . . . . . . . 1 . . 3 . . . . . . . . . . . . . . . . . . Corruption Blocked 62 | . . . . . . . . . . . . . . . . . . . . . . . . . . . . . . 10 52 . Effects 424 | . 18 3 44 15 24 17 11 4 1 5 3 7 5 2 . 50 15 4 1 10 . . 73 6 17 1 . . 4 9 28 47 Message Errors 86 | . 5 1 11 1 6 2 4 . . 1 . 1 . . . 12 4 1 . 3 . . 14 3 2 1 . . 1 . 7 6 Matter Fused 113 | . 4 . 9 1 6 7 3 2 1 2 1 1 2 . . 13 4 1 1 3 . . 19 2 5 . . . . 2 10 14 Heat Flow Errors 63 | . 1 1 3 4 3 2 . 1 . 1 1 1 3 . . 8 2 2 . 2 . . 14 . 5 . . . 1 . 5 3 Energy Discharges 59 | . 2 . 10 4 3 . 1 . . . . 3 . 2 . 6 2 . . 1 . . 8 . 1 . . . . 4 4 8 Parts Rejected 1 | . 1 . . . . . . . . . . . . . . . . . . . . . . . . . . . . . . . Data Loss (minor) 51 | . 3 1 6 3 3 2 . 1 . . . . . . . 10 2 . . 1 . . 8 . 3 . . . 1 2 1 4 Data Loss (major) 14 | . . . 1 . . 2 1 . . 1 . . . . . . . . . . . . 5 1 . . . . 1 . 1 1 Misfires 16 | . 1 . 4 1 2 1 . . . . 1 1 . . . . 1 . . . . . 1 . . . . . . . . 3 Alerts 9 | . 1 . . 1 . 1 2 . . . . . . . . . . . . . . . 4 . . . . . . . . . Misdirections 4 | . . . . . . . . . . . . . . . . . . . . . . . . . . . . . . . . 4 Weapon Failures 8 | . . . . . 1 . . . . . . . . . . 1 . . . . . . . . 1 . . . . 1 . 4 Overload Shots 3 | . . . . . . . . . . . . . . . . . . . . . . . . . . . . . . 3 . . Overflow Damage 2681 | . 29 . 150 . . 79 135 105 . . 324 11 6 137 . 707 52 5 41 . 204 . 158 . 83 . . 151 51 82 . 171 Projectiles 251 | . 5 . . . . . . . . . . 7 6 . . 3 52 . . . 48 . . . . . . . 3 82 . 45 Explosions 424 | . 24 . 150 . . . . 3 . . . 4 . . . 30 . 5 . . 10 . . . 57 . . 15 . . . 126 Melee 2006 | . . . . . . 79 135 102 . . 324 . . 137 . 674 . . 41 . 146 . 158 . 26 . . 136 48 . . . Knockbacks 68 | . . . . . . 2 . . . . . 12 6 2 . 3 2 . . . 4 . 1 . 1 . . . 4 9 . 22 Impact 3 | . . . . . . 2 . . . . . . . . . . . . . . . . 1 . . . . . . . . . Kinetic 59 | . . . . . . . . . . . . 11 4 2 . 3 2 . . . 4 . . . 1 . . . 4 9 . 19 Secondary 6 | . . . . . . . . . . . . 1 2 . . . . . . . . . . . . . . . . . . 3 Self-Inflicted Damage 548 | . 20 . 69 26 . . . 28 . 32 . 51 . . . 114 . . . . . . 34 . . . . 22 . 33 . 119 Shots 14 | . 1 . 1 1 . . . 1 . 1 . 1 . . . 3 . . . . . . . . . . . 1 . 1 . 3 Rammed 24 | 1 1 1 12 3 5 . . . . . . . . . . . . . . . . . 1 . . . . . . . . . Targets Rammed 27 | 1 1 2 12 4 6 . . . . . . . . . . . . . . . . . 1 . . . . . . . . . Kicked . | . . . . . . . . . . . . . . . . . . . . . . . . . . . . . . . . . Crushed 3 | . . 1 . 1 1 . . . . . . . . . . . . . . . . . . . . . . . . . . . Highest Temperature 294 | . 159 149 224 254 224 270 . 144 . 207 227 191 190 34 . 229 259 263 . 99 2 . 291 1 294 3 . 14 102 112 216 142 Average Temperature 48 | . 61 36 37 108 51 141 . 80 . 115 98 22 36 14 . 53 54 135 . 46 2 . 32 1 73 1 . 13 39 59 85 77 Received Heat Transfer 1972 | . 156 141 281 14 561 27 . . . . 20 9 4 . . 72 . . . . 24 . 159 . 9 . . . 378 . . 117 Effects 1 | . . . 1 . . . . . . . . . . . . . . . . . . . . . . . . . . . . . Interference 1 | . . . 1 . . . . . . . . . . . . . . . . . . . . . . . . . . . . . Siege Activations . | . . . . . . . . . . . . . . . . . . . . . . . . . . . . . . . . . Robots Corrupted . | . . . . . . . . . . . . . . . . . . . . . . . . . . . . . . . . . Combat Hostiles . | . . . . . . . . . . . . . . . . . . . . . . . . . . . . . . . . . Parts Fried 10 | . . . 1 . . 7 . . . . . . . . . . . . . . . . 2 . . . . . . . . . Impact Corruptions 6 | . . . . . . 5 . . . . . . . . . . . . . . . . 1 . . . . . . . . . Robots Melted 1 | . . . . . . . . . . . . . . . . . . . . . . . . . . . . . 1 . . . Combat Hostiles . | . . . . . . . . . . . . . . . . . . . . . . . . . . . . . . . . . Parts Melted 8 | . 1 . 1 . . . . . . . . . . . . . . . . . . . . . . . . . 4 2 . . Heat Transferred 1212 | . 296 . 509 . 37 . . . . . . . . . . . . . . . . . . . . . . . 148 222 . . Parts Sabotaged . | . . . . . . . . . . . . . . . . . . . . . . . . . . . . . . . . . Parts Stolen . | . . . . . . . . . . . . . . . . . . . . . . . . . . . . . . . . . Parts Stripped . | . . . . . . . . . . . . . . . . . . . . . . . . . . . . . . . . . Power Chain Reactions 2 | . . . 2 . . . . . . . . . . . . . . . . . . . . . . . . . . . . . Missiles Intercepted . | . . . . . . . . . . . . . . . . . . . . . . . . . . . . . . . . . Alert | -11 -10 -10 -9 -9 -8 -7 -7 -7 -7 -6 -6 -6 -6 -6 -6 -5 -5 -5 -5 -4 -4 -4 -4 -4 -4 -4 -3 -3 -3 -2 -2 -2 ------- Run | Scr Mat Min Mat Min Mat Fac Low Low Dat Pro Fac Ext Cet Arc Hub Fac Upp Upp Zhi Pro Fac Was Fac Upp Upp War Pro Res Tes Res Qua Sec Peak Influence 850 | . 202 55 850 432 263 100 . . . . 131 374 703 518 395 425 . . . . 442 36 506 . . . . 213 162 231 321 421 Initial 313 | . . 55 21 313 37 39 . . . . 56 25 168 281 181 193 . . . . . 21 25 . . . . . 6 29 67 18 Average 153 | . 60 39 395 248 97 49 . . . . 53 190 400 472 222 149 . . . . 90 33 100 . . . . 74 61 80 91 176 Maximum Alert Level 3 | . 1 . 3 2 1 . . . . . . 1 3 2 1 2 . . . . 2 . 2 . . . . 1 . 1 1 2 Low Security (%) 76 | 100 96 100 37 25 96 100 . . . . 100 48 13 . 40 71 . . . . 81 100 98 . . . . 92 100 91 87 68 Level 1 12 | . 3 . 8 53 3 . . . . . . 51 53 7 59 24 . . . . 18 . . . . . . 7 . 8 12 30 Level 2 7 | . . . 30 20 . . . . . . . . 13 92 . 4 . . . . . . 1 . . . . . . . . 1 Level 3 3 | . . . 23 . . . . . . . . . 18 . . . . . . . . . . . . . . . . . . . Level 4 . | . . . . . . . . . . . . . . . . . . . . . . . . . . . . . . . . . Level 5 . | . . . . . . . . . . . . . . . . . . . . . . . . . . . . . . . . . High Security . | . . . . . . . . . . . . . . . . . . . . . . . . . . . . . . . . . Max Security . | . . . . . . . . . . . . . . . . . . . . . . . . . . . . . . . . . Squads Dispatched 79 | . 2 . 5 . 3 6 . . . . 8 . . . 6 10 . . . . 3 . 15 . . . . 4 2 1 2 12 Investigation 28 | . 1 . 1 . 1 4 . . . . 2 . . . 3 4 . . . . 1 . 6 . . . . 2 . 1 1 1 Extermination 16 | . . . . . . 1 . . . . 3 . . . . 4 . . . . 1 . 5 . . . . . . . . 2 Reinforcement 30 | . 1 . 4 . 2 1 . . . . 2 . . . 2 2 . . . . 1 . 4 . . . . 2 2 . 1 6 Assault 1 | . . . . . . . . . . . . . . . 1 . . . . . . . . . . . . . . . . . Garrison 1 | . . . . . . . . . . . 1 . . . . . . . . . . . . . . . . . . . . . Intercept 3 | . . . . . . . . . . . . . . . . . . . . . . . . . . . . . . . . 3 Searches Triggered . | . . . . . . . . . . . . . . . . . . . . . . . . . . . . . . . . . Construction Impeded 3 | . . . . . . . . . . . 1 . . . . 1 . . . . . . . . . . . 1 . . . . Haulers Reinforced 3 | . . . . . . . . . . . . . . . . 1 . . . . 1 . . . . . . 1 . . . . Active Scanning Responses . | . . . . . . . . . . . . . . . . . . . . . . . . . . . . . . . . . Cargo Convoy Interrupts . | . . . . . . . . . . . . . . . . . . . . . . . . . . . . . . . . . Stealth | -11 -10 -10 -9 -9 -8 -7 -7 -7 -7 -6 -6 -6 -6 -6 -6 -5 -5 -5 -5 -4 -4 -4 -4 -4 -4 -4 -3 -3 -3 -2 -2 -2 --------- Run | Scr Mat Min Mat Min Mat Fac Low Low Dat Pro Fac Ext Cet Arc Hub Fac Upp Upp Zhi Pro Fac Was Fac Upp Upp War Pro Res Tes Res Qua Sec Distress Signals 35 | . 1 . 1 1 5 . . . . . 2 1 . 1 . 2 . . . . 2 . 1 . . . . 4 1 11 . 2 Communications Jammed 29 | . . . . . . . . . . . . . . . . . . . . . . . 18 . . . . . 11 . . . Distress Signals 29 | . . . . . . . . . . . . . . . . . . . . . . . 18 . . . . . 11 . . . Times Spotted 420 | . 29 2 77 10 38 9 . 4 4 4 13 15 12 10 6 31 6 1 . . 11 6 36 . 6 . . 14 13 13 8 42 Peak Tracking Total 11 | . 4 2 5 3 3 2 . 4 4 4 6 4 4 2 5 7 5 3 . . 4 6 8 . 3 . . 6 11 6 2 10 Tactical Retreats 35 | . . . 1 1 3 1 . . . . 3 1 . . . 3 3 . . . . . 7 . 1 . . 1 1 3 . 6 Traps | -11 -10 -10 -9 -9 -8 -7 -7 -7 -7 -6 -6 -6 -6 -6 -6 -5 -5 -5 -5 -4 -4 -4 -4 -4 -4 -4 -3 -3 -3 -2 -2 -2 ------- Run | Scr Mat Min Mat Min Mat Fac Low Low Dat Pro Fac Ext Cet Arc Hub Fac Upp Upp Zhi Pro Fac Was Fac Upp Upp War Pro Res Tes Res Qua Sec Traps Triggered 39 | . 1 . 4 . 3 6 . . . . 1 4 . . . 6 . . . . 3 . 2 . . . . . 1 2 3 3 Indirectly 2 | . . . . . . . . . . . . . . . . . . . . . . . . . . . . . . 2 . . Trap Hack Attempts . | . . . . . . . . . . . . . . . . . . . . . . . . . . . . . . . . . Triggered . | . . . . . . . . . . . . . . . . . . . . . . . . . . . . . . . . . Disarmed 28 | . . . . . . . . . . . . . . . . 14 . . . . . . . . . . . . 12 . 2 . Reprogrammed 22 | . . . . . . . . . . . . . . . . 12 . . . . 4 . 6 . . . . . . . . . Reused 2 | . . . . . . . . . . . . . . . . . . . . . . . 2 . . . . . . . . . Traps Extracted 6 | . . . . . . . . . . . . . . . . 6 . . . . . . . . . . . . . . . . Installed . | . . . . . . . . . . . . . . . . . . . . . . . . . . . . . . . . . Triggered 14 | . . . . . . . . . . 1 . . . . . . . . . . . . 2 . . 11 . . . . . . Most Traps Carried 6 | . . . . . . . . . . . . . . . . 6 . . . . . . . . . . . . . . . . Machines | -11 -10 -10 -9 -9 -8 -7 -7 -7 -7 -6 -6 -6 -6 -6 -6 -5 -5 -5 -5 -4 -4 -4 -4 -4 -4 -4 -3 -3 -3 -2 -2 -2 ---------- Run | Scr Mat Min Mat Min Mat Fac Low Low Dat Pro Fac Ext Cet Arc Hub Fac Upp Upp Zhi Pro Fac Was Fac Upp Upp War Pro Res Tes Res Qua Sec Machines Disabled 48 | . 1 . 2 . . . . . . . . 5 . 3 1 2 . . . . 3 . 2 . . . 1 2 6 4 4 12 Max in Single Turn 2 | . 1 . 1 . . . . . . . . 1 . 1 . 1 . . . . 1 . 2 . . . 1 2 1 1 1 1 Garrison Access 14 | . . . . . . 3 . . . . . . . . 2 3 . . . . 1 . 1 . . . . 1 1 1 . 1 Network Hub 3 | . . . . . . . . . . . . . . . 3 . . . . . . . . . . . . . . . . . Energy Cycler 1 | . . . . . . . . . . . . 1 . . . . . . . . . . . . . . . . . . . . Machines Sabotaged 2 | . . . . . . . . . . . . . . . 2 . . . . . . . . . . . . . . . . . Garrisons Compromised . | . . . . . . . . . . . . . . . . . . . . . . . . . . . . . . . . . Overloaded Fab Kills . | . . . . . . . . . . . . . . . . . . . . . . . . . . . . . . . . . Hacking | -11 -10 -10 -9 -9 -8 -7 -7 -7 -7 -6 -6 -6 -6 -6 -6 -5 -5 -5 -5 -4 -4 -4 -4 -4 -4 -4 -3 -3 -3 -2 -2 -2 --------- Run | Scr Mat Min Mat Min Mat Fac Low Low Dat Pro Fac Ext Cet Arc Hub Fac Upp Upp Zhi Pro Fac Was Fac Upp Upp War Pro Res Tes Res Qua Sec Machines Accessed 190 | . 10 . 14 . 6 19 . 1 4 . 12 12 1 . 9 24 3 1 4 . 11 . 22 . 1 2 . 5 7 2 8 12 Terminals 103 | . 7 . 8 . 3 9 . 1 . . 8 12 1 . 8 10 1 . . . 6 . 12 . . . . 3 3 . 4 7 Fabricators 17 | . . . . . . 4 . . . . 2 . . . . 4 . . . . 1 . 5 . . . . 1 . . . . Repair Stations 15 | . 1 . 2 . 2 . . . . . 1 . . . . 3 . . . . 1 . 1 . . . . . 1 . 2 1 Recycling Units 12 | . 2 . 2 . 1 2 . . . . . . . . . 2 . . . . 2 . 1 . . . . . . . . . Scanalyzers 15 | . . . 2 . . 1 . . . . 1 . . . . 2 . . . . . . 2 . . . . . 2 . 2 3 Garrison Access 14 | . . . . . . 3 . . . . . . . . 1 3 . . . . 1 . 1 . . . . 1 1 2 . 1 Total Hacks 835 | . 21 . 47 . 16 43 . 1 29 . 41 20 1 . 31 146 5 1 17 . 57 . 179 . 1 2 . 28 29 5 62 53 Successful 677 | . 7 . 28 . 8 30 . 1 29 . 34 14 1 . 27 136 5 1 17 . 53 . 159 . 1 2 . 26 25 1 43 29 Failed 154 | . 14 . 19 . 8 13 . . . . 6 6 . . 4 9 . . . . 3 . 20 . . . . 1 4 4 19 24 Catastrophic 16 | . 4 . 2 . . 2 . . . . . . . . . . . . . . . . . . . . . . . . 1 7 Database Lockouts 4 | . . . . . . . . . . . 1 . . . . 1 . . . . 1 . . . . . . 1 . . . . Manual 392 | . 14 . 26 . 9 24 . . . . 14 7 1 . 28 71 . . . . 43 . 94 . . 1 . 19 8 . 20 13 Terminals 452 | . 14 . 28 . 9 18 . 1 . . 16 20 1 . 30 74 1 . . . 36 . 104 . . . . 17 19 . 31 33 Fabricators 93 | . . . . . . 9 . . . . 14 . . . . 19 . . . . 7 . 34 . . . . 10 . . . . Repair Stations 97 | . 2 . 10 . 6 . . . . . 2 . . . . 18 . . . . 6 . 17 . . . . . 7 . 23 6 Recycling Units 33 | . 5 . 2 . 1 6 . . . . . . . . . 9 . . . . 7 . 3 . . . . . . . . . Scanalyzers 87 | . . . 7 . . 5 . . . . 9 . . . . 23 . . . . . . 20 . . . . . 2 . 8 13 Garrison Access 19 | . . . . . . 5 . . . . . . . . 1 3 . . . . 1 . 1 . . . . 1 1 5 . 1 Terminal Hacks 316 | . 2 . 11 . 2 5 . 1 29 . 9 13 1 . 18 55 5 1 17 . 24 . 64 . 1 2 . 12 14 . 15 15 Record 22 | . . . . . . . . 1 11 . . . . . . . 4 . 5 . . . 1 . . . . . . . . . Part Schematic 49 | . . . 1 . . . . . 11 . 2 . . . 1 6 . . 4 . 3 . 15 . . . . 1 3 . 1 1 Robot Schematic 4 | . . . . . . . . . 4 . . . . . . . . . . . . . . . . . . . . . . . Robot Analysis 14 | . 1 . 2 . . . . . . . 1 . . . . 2 . . 4 . . . . . . . . 2 . . 2 . Prototype ID Bank 15 | . . . . . . . . . 3 . . . . . . 2 . . 4 . 1 . 2 . . . . 1 1 . 1 . Open Door 17 | . . . . . . . . . . . 1 9 1 . . . 1 1 . . . . . . 1 2 . . . . . 1 Level Access Points 1 | . . . . . . . . . . . . . . . 1 . . . . . . . . . . . . . . . . . Branch Access Points 4 | . . . . . . . . . . . . . . . . 1 . . . . 1 . 1 . . . . 1 . . . . Machine Index 5 | . . . . . . . . . . . . . . . . 1 . . . . 1 . 1 . . . . 1 1 . . . Alert Level 54 | . . . 4 . 2 1 . . . . 1 1 . . 6 9 . . . . 4 . 9 . . . . 3 2 . 5 7 Unreport Threat 27 | . . . 1 . . . . . . . . 1 . . 4 5 . . . . 3 . 6 . . . . 2 . . 2 3 Locate Traps 28 | . . . 1 . . 1 . . . . 2 2 . . 1 6 . . . . 3 . 7 . . . . 1 2 . 2 . Disarm Traps 6 | . . . . . . . . . . . . . . . . 3 . . . . . . . . . . . . 2 . 1 . Reprogram Traps 5 | . . . . . . . . . . . . . . . . 3 . . . . 1 . 1 . . . . . . . . . Dispatch Records 1 | . . . . . . . . . . . . . . . . 1 . . . . . . . . . . . . . . . . Patrol Status 3 | . . . . . . 1 . . . . . . . . . 1 . . . . . . . . . . . . 1 . . . Recall Investigation 3 | . . . . . . . . . . . . . . . . . . . . . . . 3 . . . . . . . . . Recall Extermination 9 | . . . . . . . . . . . 1 . . . . 2 . . . . 1 . 5 . . . . . . . . . Recall Reinforcements 9 | . . . . . . . . . . . 1 . . . . 2 . . . . 1 . 3 . . . . . . . . 2 Hauler Manifests 13 | . 1 . 2 . . 2 . . . . . . . . . 3 . . . . 2 . 2 . . . . . . . . 1 Registered Components 1 | . . . . . . . . . . . . . . . . . . . . . . . 1 . . . . . . . . . Registered Prototypes 3 | . . . . . . . . . . . . . . . . 1 . . . . . . . . . . . . 1 . 1 . Zone Layout 23 | . . . . . . . . . . . . . . . 5 7 . . . . 3 . 7 . . . . . 1 . . . Fabricator Hacks 53 | . . . . . . 4 . . . . 11 . . . . 11 . . . . 3 . 20 . . . . 4 . . . . Network Status 4 | . . . . . . 1 . . . . . . . . . 1 . . . . 1 . 1 . . . . . . . . . Load Schematic 33 | . . . . . . 3 . . . . 6 . . . . 7 . . . . 2 . 12 . . . . 3 . . . . Build 16 | . . . . . . . . . . . 5 . . . . 3 . . . . . . 7 . . . . 1 . . . . Repair Station Hacks 82 | . 2 . 7 . 3 . . . . . 2 . . . . 18 . . . . 6 . 17 . . . . . 6 . 18 3 Scan Component 44 | . 1 . 4 . 2 . . . . . 1 . . . . 9 . . . . 3 . 9 . . . . . 3 . 10 2 Repair 38 | . 1 . 3 . 1 . . . . . 1 . . . . 9 . . . . 3 . 8 . . . . . 3 . 8 1 Recycling Unit Hacks 10 | . 1 . 2 . 1 1 . . . . . . . . . 2 . . . . 2 . 1 . . . . . . . . . Retrieve Components 10 | . 1 . 2 . 1 1 . . . . . . . . . 2 . . . . 2 . 1 . . . . . . . . . Scanalyzer 78 | . . . 5 . . 5 . . . . 9 . . . . 23 . . . . . . 20 . . . . . 2 . 5 9 Insert Component 42 | . . . 3 . . 3 . . . . 5 . . . . 8 . . . . . . 11 . . . . . 2 . 4 6 Analyze 36 | . . . 2 . . 2 . . . . 4 . . . . 15 . . . . . . 9 . . . . . . . 1 3 Garrison Access Hacks 13 | . . . . . . 3 . . . . . . . . 1 3 . . . . 1 . 1 . . . . 1 1 1 . 1 Seal Access 13 | . . . . . . 3 . . . . . . . . 1 3 . . . . 1 . 1 . . . . 1 1 1 . 1 Unauthorized Hacks 125 | . 2 . 3 . 2 12 . . . . 3 1 . . 8 24 . . . . 17 . 36 . . . . 9 2 . 5 1 Terminals 69 | . 1 . 3 . 2 4 . . . . 1 1 . . 8 11 . . . . 8 . 20 . . . . 3 2 . 5 . Track 12 | . . . . . . 1 . . . . . . . . 2 3 . . . . 2 . 3 . . . . . . . 1 . Assimilate 4 | . . . . . . . . . . . . . . . 1 . . . . . . . 2 . . . . . 1 . . . Botnet 29 | . . . 1 . 1 2 . . . . 1 1 . . . 4 . . . . 4 . 9 . . . . 2 1 . 3 . Detonate 2 | . . . . . . . . . . . . . . . 2 . . . . . . . . . . . . . . . . . Disrupt 9 | . . . 1 . . . . . . . . . . . . 3 . . . . 1 . 4 . . . . . . . . . Operators 10 | . 1 . 1 . 1 1 . . . . . . . . . 1 . . . . 1 . 2 . . . . 1 . . 1 . Sabotage 3 | . . . . . . . . . . . . . . . 3 . . . . . . . . . . . . . . . . . Fabricators 39 | . . . . . . 5 . . . . 2 . . . . 8 . . . . 4 . 14 . . . . 6 . . . . Report 3 | . . . . . . . . . . . . . . . . 1 . . . . . . 1 . . . . 1 . . . . Prioritize 4 | . . . . . . . . . . . . . . . . 1 . . . . . . 2 . . . . 1 . . . . Liberate 3 | . . . . . . . . . . . . . . . . 1 . . . . 1 . . . . . . 1 . . . . Fabnet 6 | . . . . . . . . . . . . . . . . . . . . . 1 . 4 . . . . 1 . . . . Haulers 7 | . . . . . . 2 . . . . . . . . . 1 . . . . 1 . 2 . . . . 1 . . . . Recompile 16 | . . . . . . 3 . . . . 2 . . . . 4 . . . . 1 . 5 . . . . 1 . . . . Repair Stations . | . . . . . . . . . . . . . . . . . . . . . . . . . . . . . . . . . Recycling Units 16 | . 1 . . . . 3 . . . . . . . . . 5 . . . . 5 . 2 . . . . . . . . . Reject 6 | . . . . . . 1 . . . . . . . . . 2 . . . . 2 . 1 . . . . . . . . . Recyclers 2 | . . . . . . . . . . . . . . . . 1 . . . . 1 . . . . . . . . . . . Mask 8 | . 1 . . . . 2 . . . . . . . . . 2 . . . . 2 . 1 . . . . . . . . . Scanalyzers 1 | . . . . . . . . . . . . . . . . . . . . . . . . . . . . . . . . 1 Researchers 1 | . . . . . . . . . . . . . . . . . . . . . . . . . . . . . . . . 1 Garrison Access . | . . . . . . . . . . . . . . . . . . . . . . . . . . . . . . . . . Data Cores Recovered 1 | . . . . . . . . . . . . . . . . . . . . . . . 1 . . . . . . . . . Used 1 | . . . . . . . . . . . . . . . . . . . . . . . 1 . . . . . . . . . Hacking Detections 113 | . 10 . 11 . 4 14 . 1 . . 10 4 1 . 6 10 . . . . 6 . 12 . . . . 2 4 1 8 9 Full Trace Events 6 | . 1 . . . 1 . . . . . . . . . . . . . . . . . 1 . . . . . . 1 1 1 Feedback Events 2 | . . . . . . . . . . . . . . . . . . . . . . . . . . . . . . 2 . . Corruption 1 | . . . . . . . . . . . . . . . . . . . . . . . . . . . . . . 1 . . Hackware Fried 1 | . . . . . . . . . . . . . . . . . . . . . . . . . . . . . . 1 . . Feedback Blocked . | . . . . . . . . . . . . . . . . . . . . . . . . . . . . . . . . . Robot Schematics Acquired 14 | . . . . . . . . . 4 . . . . . . . . . . . . . . . . . . . . . 9 1 Robots Built . | . . . . . . . . . . . . . . . . . . . . . . . . . . . . . . . . . Authchips . | . . . . . . . . . . . . . . . . . . . . . . . . . . . . . . . . . Time . | . . . . . . . . . . . . . . . . . . . . . . . . . . . . . . . . . Total Robot Build Rating . | . . . . . . . . . . . . . . . . . . . . . . . . . . . . . . . . . Part Schematics Acquired 99 | . . . 3 . . 2 . . 11 . 6 . . . 1 13 . . 4 . 3 . 23 . . . . . 3 . 22 8 Parts Built 21 | . . . . . . . . . . . 7 . . . . 3 . . . . . . 10 . . . . 1 . . . . Authchips 15 | . . . . . . . . . . . 4 . . . . 3 . . . . . . 7 . . . . 1 . . . . Time 938 | . . . . . . . . . . . 289 . . . . 232 . . . . . . 361 . . . . 56 . . . . Total Part Build Rating 155 | . . . . . . . . . . . 45 . . . . 21 . . . . . . 83 . . . . 6 . . . . Parts Repaired 38 | . 1 . 3 . 1 . . . . . 1 . . . . 9 . . . . 3 . 8 . . . . . 3 . 8 1 Time 1842 | . 26 . 238 . 26 . . . . . 35 . . . . 343 . . . . 105 . 631 . . . . . 111 . 290 37 Parts Recycled . | . . . . . . . . . . . . . . . . . . . . . . . . . . . . . . . . . Recycled Matter . | . . . . . . . . . . . . . . . . . . . . . . . . . . . . . . . . . Retrieved Matter . | . . . . . . . . . . . . . . . . . . . . . . . . . . . . . . . . . Retrieved Components 38 | . 2 . 19 . 10 1 . . . . . . . . . 2 . . . . 2 . 2 . . . . . . . . . Parts Scanalyzed 27 | . . . 2 . . 2 . . . . 4 . . . . 7 . . . . . . 9 . . . . . . . 1 2 Part Schematics Acquired 26 | . . . 2 . . 2 . . . . 4 . . . . 7 . . . . . . 8 . . . . . . . 1 2 Parts Damaged 2 | . . . 1 . . . . . . . . . . . . . . . . . . . 1 . . . . . . . . . Bothacking | -11 -10 -10 -9 -9 -8 -7 -7 -7 -7 -6 -6 -6 -6 -6 -6 -5 -5 -5 -5 -4 -4 -4 -4 -4 -4 -4 -3 -3 -3 -2 -2 -2 ------------ Run | Scr Mat Min Mat Min Mat Fac Low Low Dat Pro Fac Ext Cet Arc Hub Fac Upp Upp Zhi Pro Fac Was Fac Upp Upp War Pro Res Tes Res Qua Sec Used RIF Installer . | . . . . . . . . . . . . . . . . . . . . . . . . . . . . . . . . . Robots Hacked . | . . . . . . . . . . . . . . . . . . . . . . . . . . . . . . . . . Non-combat . | . . . . . . . . . . . . . . . . . . . . . . . . . . . . . . . . . Combat . | . . . . . . . . . . . . . . . . . . . . . . . . . . . . . . . . . Robot Hacks Applied . | . . . . . . . . . . . . . . . . . . . . . . . . . . . . . . . . . Relay Couplers Released 2 | . . . . . . . . . . . . . . . 2 . . . . . . . . . . . . . . . . . Machine Destruction 2 | . . . . . . . . . . . . . . . 2 . . . . . . . . . . . . . . . . . Fabnet Peak Effective % . | . . . . . . . . . . . . . . . . . . . . . . . . . . . . . . . . . Robots Rewired 7 | . . . . . . . . . . . . 7 . . . . . . . . . . . . . . . . . . . . Allies Hacked . | . . . . . . . . . . . . . . . . . . . . . . . . . . . . . . . . . Hacks Repelled . | . . . . . . . . . . . . . . . . . . . . . . . . . . . . . . . . . Allies | -11 -10 -10 -9 -9 -8 -7 -7 -7 -7 -6 -6 -6 -6 -6 -6 -5 -5 -5 -5 -4 -4 -4 -4 -4 -4 -4 -3 -3 -3 -2 -2 -2 -------- Run | Scr Mat Min Mat Min Mat Fac Low Low Dat Pro Fac Ext Cet Arc Hub Fac Upp Upp Zhi Pro Fac Was Fac Upp Upp War Pro Res Tes Res Qua Sec Total Allies 36 | . . . . . . . . . . . . 24 5 . . . . . . . 5 . 2 . . . . . . . . . Largest Group 15 | . . . . . . . . . . . . 15 11 11 7 . . . . . 3 1 3 . . . . . . . . . Highest-Rated Group 767 | . . . . . . . . . . . . 515 767 767 519 . . . . . 141 47 120 . . . . . . . . . Highest-Rated Ally 159 | . . . . . . . . . . . . 159 159 156 96 . . . . . 56 47 47 . . . . . . . . . Total Orders 7 | . . . . . . . . . . . . 3 3 . . . . . . . . . . . 1 . . . . . . . RETURN 7 | . . . . . . . . . . . . 3 3 . . . . . . . . . . . 1 . . . . . . . Ally Attacks 367 | . . . . . . . . . . . . 136 90 19 62 . . . . . 17 5 19 . 10 . . . 9 . . . Total Damage 10922 | . . . . . . . . . . . . 3309 2199 354 3180 . . . . . 1002 161 469 . 131 . . . 117 . . . Kills 66 | . . . . . . . . . . . . 20 12 2 20 . . . . . 7 . 2 . 3 . . . . . . . Allies Corrupted 5 | . . . . . . . . . . . . 2 . . 3 . . . . . . . . . . . . . . . . . Allies Melted 1 | . . . . . . . . . . . . . . . . . . . . . . . . . . . . . . 1 . . Intel | -11 -10 -10 -9 -9 -8 -7 -7 -7 -7 -6 -6 -6 -6 -6 -6 -5 -5 -5 -5 -4 -4 -4 -4 -4 -4 -4 -3 -3 -3 -2 -2 -2 ------- Run | Scr Mat Min Mat Min Mat Fac Low Low Dat Pro Fac Ext Cet Arc Hub Fac Upp Upp Zhi Pro Fac Was Fac Upp Upp War Pro Res Tes Res Qua Sec Robot Analysis Total 14 | . 1 . 2 . . . . . . . 1 . . . . 2 . . 4 . . . . . . . . 2 . . 2 . Derelict Logs Recovered 16 | . . 1 . 3 . . 1 1 . . . . . . . . 3 2 . 2 . . . 1 2 . . . . . . . Drone Launches 11 | . . . . . . . . . . . . 3 4 . . . . . . . . . . . 2 . . . 2 . . . Drone Recoveries 8 | . . . . . . . . . . . . 3 3 . . . . . . . . . . . 2 . . . . . . . Exploration | -11 -10 -10 -9 -9 -8 -7 -7 -7 -7 -6 -6 -6 -6 -6 -6 -5 -5 -5 -5 -4 -4 -4 -4 -4 -4 -4 -3 -3 -3 -2 -2 -2 ------------- Run | Scr Mat Min Mat Min Mat Fac Low Low Dat Pro Fac Ext Cet Arc Hub Fac Upp Upp Zhi Pro Fac Was Fac Upp Upp War Pro Res Tes Res Qua Sec Turns Passed 30780 | 94 2201 684 3789 1074 2839 1659 423 312 44 229 1535 935 287 359 309 2475 670 211 77 388 908 34 2430 179 488 368 300 519 644 981 1998 1337 Spaces Moved 35034 | 52 835 271 1852 565 1042 2938 942 741 101 504 2198 885 186 233 445 3377 951 467 165 489 1478 131 2848 424 861 743 529 689 748 1883 3210 2251 Core 14 | 5 . . . . . . . . . . . 1 . 4 . . . . . . . . . . . . . . . . . 4 Treads 4612 | 47 835 271 1852 565 1042 . . . . . . . . . . . . . . . . . . . . . . . . . . . Legs . | . . . . . . . . . . . . . . . . . . . . . . . . . . . . . . . . . Wheels . | . . . . . . . . . . . . . . . . . . . . . . . . . . . . . . . . . Hover 30408 | . . . . . . 2938 942 741 101 504 2198 884 186 229 445 3377 951 467 165 489 1478 131 2848 424 861 743 529 689 748 1883 3210 2247 Flight . | . . . . . . . . . . . . . . . . . . . . . . . . . . . . . . . . . Fastest Speed 26 | 50 160 240 160 160 160 38 38 38 38 38 38 38 38 38 38 34 34 34 34 34 26 26 26 40 40 36 36 36 36 36 36 36 Average Speed 58 | 149 235 240 161 160 225 38 38 38 38 38 40 42 73 48 38 34 36 34 34 34 30 26 37 40 40 38 36 36 40 38 38 36 Slowest Speed 700 | 160 240 240 240 160 240 98 38 98 38 38 98 700 98 700 98 98 94 34 34 34 98 26 152 40 40 42 36 42 260 40 43 152 Overloaded Moves . | . . . . . . . . . . . . . . . . . . . . . . . . . . . . . . . . . Propulsion Burnouts . | . . . . . . . . . . . . . . . . . . . . . . . . . . . . . . . . . Robots Hopped 1 | . . . . . . . . . . . . . . . . . . . . . . . 1 . . . . . . . . . Cave-ins Triggered . | . . . . . . . . . . . . . . . . . . . . . . . . . . . . . . . . . Teleports 1 | . . . . . . . . . . . . . . . . . . . . . . . . . . . . . 1 . . . Exploration Rate (%) 64 | 5 99 55 94 94 57 64 87 74 76 53 32 87 69 89 37 49 79 62 60 68 22 93 38 65 77 95 72 12 75 38 95 52 Regions Visited 32 Branch Regions 21 Pre-discovered Areas 7 | . . . . 3 . . . . 1 . . . . . . . . . 3 . . . . . . . . . . . . . Known Exits Taken 26 | . . . . 1 1 1 1 1 1 1 1 1 1 1 1 1 1 1 1 1 . . 1 1 1 1 1 1 1 1 1 . Unknown Exits Taken 4 | 1 1 1 1 . . . . . . . . . . . . . . . . . . . . . . . . . . . . . Scrap Searched 26 | . . 1 . 3 . . 1 3 . 2 . . . . . . 3 2 . 2 . . . 3 3 . 3 . . . . . Spaces Dug 339 | . 25 . . 12 . 32 1 3 . 17 24 7 . . 4 67 22 6 . 23 12 . 54 1 . . 2 6 11 4 2 4 Terrain Destroyed 887 | . 29 . 22 47 . 32 1 28 . 17 26 63 4 . 4 109 33 40 . 23 59 . 93 1 53 . 2 32 16 19 25 109 Melee 212 | . . . . . . 32 1 3 . . 21 . . . 4 57 18 6 . 5 12 . 36 1 . . 2 6 8 . . . Projectile 121 | . . . . . . . . . . . 5 30 4 . . 21 14 . . . 2 . 4 . 8 . . . 8 9 2 14 AOE 505 | . 29 . 22 47 . . . 25 . 17 . 33 . . . 31 1 34 . 18 45 . 53 . 45 . . 26 . . . 79 Terrain Rammed . | . . . . . . . . . . . . . . . . . . . . . . . . . . . . . . . . . Walls Destroyed . | . . . . . . . . . . . . . . . . . . . . . . . . . . . . . . . . . Machines Disabled . | . . . . . . . . . . . . . . . . . . . . . . . . . . . . . . . . . Actions | -11 -10 -10 -9 -9 -8 -7 -7 -7 -7 -6 -6 -6 -6 -6 -6 -5 -5 -5 -5 -4 -4 -4 -4 -4 -4 -4 -3 -3 -3 -2 -2 -2 --------- Run | Scr Mat Min Mat Min Mat Fac Low Low Dat Pro Fac Ext Cet Arc Hub Fac Upp Upp Zhi Pro Fac Was Fac Upp Upp War Pro Res Tes Res Qua Sec Total 43571 | 65 973 288 2390 692 1316 3398 999 756 104 536 2763 1403 325 449 570 4436 1226 505 180 700 1876 134 4059 430 981 823 632 912 1038 2081 3881 2650 Wait 5698 | . 34 3 276 98 73 273 54 2 . 23 431 405 85 172 109 732 193 26 . 202 332 . 985 4 68 51 97 169 172 35 500 94 Move 35001 | 51 834 270 1851 564 1041 2937 941 740 100 503 2197 884 185 232 444 3376 950 466 164 488 1478 130 2845 423 860 742 528 688 747 1882 3209 2251 Hop 1 | . . . . . . . . . . . . . . . . . . . . . . . 1 . . . . . . . . . Pick Up 264 | 7 24 2 16 . 19 27 . 1 1 1 14 3 9 3 1 25 7 . 2 1 3 2 21 . 7 4 1 4 14 10 16 19 Fast Attach 255 | 5 5 . 19 . 7 6 . . . . 16 2 4 8 2 24 6 2 5 . 8 . 30 . 4 10 . 6 21 31 22 12 Attach 156 | 1 2 1 4 . 8 14 . . . 2 10 4 7 2 1 25 10 . . 1 2 . 11 . 6 . . 3 11 5 3 23 Detach 49 | . 1 . . . . 3 . . . 1 1 3 4 1 . 12 3 . . . 1 . 3 . . 2 . . 4 3 . 7 Swap 218 | . 11 . 29 3 18 14 . 4 1 3 13 2 2 . 1 20 2 . 1 . 6 . 27 2 5 1 2 3 8 10 11 19 Drop 423 | . 12 2 34 1 28 37 . 1 1 . 23 5 13 10 3 29 13 2 5 1 4 2 31 . 11 13 1 9 25 37 33 37 Fire 913 | . 49 8 149 22 116 3 . 2 . 3 7 40 16 7 . 49 24 3 . 1 10 . 48 . 19 . . 5 16 68 87 161 Melee 434 | . . . . . . 58 4 6 1 . 51 . . 14 9 120 18 6 3 6 32 . 56 1 1 . 3 25 20 . . . Ram 2 | . . . . . . . . . . . . . . . . . . . . . . . 1 . . . . . . . . 1 Kick . | . . . . . . . . . . . . . . . . . . . . . . . . . . . . . . . . . Crush 26 | 1 1 2 12 4 6 . . . . . . . . . . . . . . . . . . . . . . . . . . . Escape Stasis 102 | . . . . . . 26 . . . . . 26 . . . 24 . . . . . . . . . . . . . . . 26 Rewire 29 | . . . . . . . . . . . . 29 . . . . . . . . . . . . . . . . . . . . Trap . | . . . . . . . . . . . . . . . . . . . . . . . . . . . . . . . . . Miscellaneous . | . . . . . . . . . . . . . . . . . . . . . . . . . . . . . . . . . Route ------- -11/Scrapyard -10/Materials (discovered 4 exits: *Mat x3 / [*Min]) -10/Mines (discovered 2 exits: *Mat x2) -9/Materials (discovered 4 exits: *Mat x3 / [*Min]) -9/Mines (discovered 2 exits: *Mat x2) -8/Materials -7/Factory (discovered 5 exits: *Fac x2 / *Sto / *Low x2) -7/Lower Caves -7/Lower Caves -7/Data Miner -6/Proximity Caves -6/Factory (discovered 2 exits: *Fac / *Ext) -6/Extension (discovered 2 exits: *Fac / *Cet) -6/Cetus (discovered 2 exits: *Fac / *Arc) -6/Archives (discovered 3 exits: *Fac / *Hub x2) -6/Hub_04(d) (discovered 4 exits: *Fac x4) -5/Factory (discovered 3 exits: *Fac / *Upp x2) -5/Upper Caves -5/Upper Caves (discovered 2 exits: *Fac / *Zhi) -5/Zhirov -4/Proximity Caves -4/Factory (discovered 5 exits: Res x2 / Upp x2 / Arm) -4/Waste -4/Factory (discovered 5 exits: *Res x2 / *Upp x2 / Arm) -4/Upper Caves -4/Upper Caves (discovered 2 exits: *Res / *War) -4/Warlord -3/Proximity Caves -3/Research (discovered 3 exits: Res / *Tes x2) -3/Testing -2/Research (discovered 3 exits: Acc / *Qua x2) -2/Quarantine (discovered 2 exits: *Acc / *Sec) -2/Section 7 (discovered 1 exit: *Acc) History --------- Turn | Location | Event 46 | -11/Scrapyard | Discovered new exit (range 16) 95 | -11/Scrapyard | Entered Materials 307 | -10/Materials | Build established: Mutant 717 | -10/Materials | Discovered new exit (range 8) 985 | -10/Materials | Discovered new exit (range 16) 1494 | -10/Materials | Discovered new exit (range 4) 1568 | -10/Materials | Repaired Lgt. Treads 1720 | -10/Materials | Discovered new exit (range 15) 1854 | -10/Materials | Core integrity fell below 50% 2296 | -10/Materials | Entered Mines 2400 | -10/Mines | Found a damaged Exp. Sensor Array with a note attached 2405 | -10/Mines | Found Prototype Device 2464 | -10/Mines | Discovered new exit (range 15) 2586 | -10/Mines | Discovered new exit (range 9) 2778 | -10/Mines | Learned location of 1 exit from Materials 2980 | -10/Mines | Entered Materials 2980 | -9/Materials | Evolved 2 slots: Propulsion x1, Utility x1 2981 | -9/Materials | Identified exit to Materials 3755 | -9/Materials | Discovered exit to Materials (range 4) 4059 | -9/Materials | Discovered exit to Materials (range 10) 4092 | -9/Materials | Identified Exp. Sensor Array 5043 | -9/Materials | Build established: Scavenger-Mutant 5308 | -9/Materials | Discovered new exit (range 13) 6253 | -9/Materials | Build established: Mutant 6348 | -9/Materials | Repaired Broken Exp. Sensor Array 6412 | -9/Materials | Repaired Imp. Assault Rifle 6465 | -9/Materials | Repaired Hvy. Ion Engine 6769 | -9/Materials | Entered Mines 6770 | -9/Mines | Assembled infested the area 6974 | -9/Mines | Discovered exit to Materials (range 10) 6977 | -9/Mines | Discovered exit to Materials (range 5) 7081 | -9/Mines | Learned Materials security intel 7158 | -9/Mines | Learned location of Storage (-7) 7160 | -9/Mines | Learned location of Zion (-6) 7843 | -9/Mines | Entered Materials 7843 | -8/Materials | Evolved 2 slots: Utility x2 8343 | -8/Materials | Build established: Scavenger-Mutant 8483 | -8/Materials | Lost 3 parts (1n1u1w) 9908 | -8/Materials | Repaired Hcp. Storage Unit? 10079 | -8/Materials | Discovered new exit (range 16) 10679 | -8/Materials | Identified exit to Factory 10682 | -8/Materials | Entered Factory 10682 | -7/Factory | Evolved 2 slots: Propulsion x1, Utility x1 10908 | -7/Factory | Discovered new exit (range 14) 10922 | -7/Factory | Identified exit to Lower Caves 10994 | -7/Factory | Build established: Hacker-Mutant 11008 | -7/Factory | Discovered new exit (range 4) 11010 | -7/Factory | Identified exit to Factory 11108 | -7/Factory | Discovered exit to Factory (range 11) 11897 | -7/Factory | Discovered new exit (range 12) 11917 | -7/Factory | Identified exit to Storage 12330 | -7/Factory | Discovered exit to Lower Caves (range 16) 12341 | -7/Factory | Entered Lower Caves 12415 | -7/Lower Caves | Learned Factory interactive machine intel 12488 | -7/Lower Caves | Encountered a Warlord checkpoint 12652 | -7/Lower Caves | Discovered new exit (range 3) 12654 | -7/Lower Caves | Identified exit to Lower Caves 12764 | -7/Lower Caves | Entered another Lower Caves area 12947 | -7/Lower Caves | Learned Factory security intel 13007 | -7/Lower Caves | Encountered a Warlord checkpoint 13014 | -7/Lower Caves | Discovered new exit (range 15) 13018 | -7/Lower Caves | Identified exit to Data Miner 13076 | -7/Lower Caves | Entered Data Miner 13076 | -7/Data Miner | Discovered new exit (range 6) 13084 | -7/Data Miner | Met Data Miner 13091 | -7/Data Miner | Learned location of Section 7 (-2) 13091 | -7/Data Miner | Acquired the access code to Warlord's prototype stash 13097 | -7/Data Miner | Received God Mode back door access code from Data Miner 13105 | -7/Data Miner | Destroyed Data Miner 13108 | -7/Data Miner | Found Prototype Hackware 13120 | -7/Data Miner | Identified exit to Proximity Caves 13120 | -7/Data Miner | Entered Proximity Caves 13344 | -6/Proximity Caves | Discovered exit to Factory (range 12) 13349 | -6/Proximity Caves | Entered Factory 13349 | -6/Factory | Evolved 2 slots: Utility x2 13351 | -6/Factory | Loaded intel: 54 interactive machine locations 13386 | -6/Factory | Discovered new exit (range 5) 13388 | -6/Factory | Identified exit to Factory 13459 | -6/Factory | Identified Deep Network Scanner 13461 | -6/Factory | Central database locked down 13542 | -6/Factory | Fabricated Lance (x2) 13596 | -6/Factory | Fabricated Exp. Utility Shielding (x1) 13757 | -6/Factory | Assembled infested ambush trap array 13801 | -6/Factory | Found Faulty Exp. Targeting Computer 13840 | -6/Factory | Garrison activated, responded to threat 13938 | -6/Factory | Fabricated Imp. Heavy Siege Treads (x2) 13990 | -6/Factory | Repaired Imp. Airjet 14115 | -6/Factory | Fabricated Combat Drone Bay (x1) 14848 | -6/Factory | Fabricated Tri-rail Accelerator (x1) 14883 | -6/Factory | Discovered new exit (range 5) 14884 | -6/Factory | Identified exit to Extension 14884 | -6/Factory | Entered Extension 14958 | -6/Extension | Rescued a captive Derelict 14968 | -6/Extension | Rescued a captive Derelict 14969 | -6/Extension | Rescued a captive Derelict 14975 | -6/Extension | Rescued a captive Derelict 14976 | -6/Extension | Rescued a captive Derelict 15038 | -6/Extension | Rescued a captive Derelict 15039 | -6/Extension | Rescued a captive Derelict 15046 | -6/Extension | Rescued a captive Derelict 15061 | -6/Extension | Rescued a captive Derelict 15119 | -6/Extension | Rescued a captive Derelict 15119 | -6/Extension | Rescued a captive Derelict 15135 | -6/Extension | Rescued a captive Derelict 15135 | -6/Extension | Rescued a captive Derelict 15469 | -6/Extension | Spotted B-75 Beast 15472 | -6/Extension | Allies destroyed B-75 Beast 15473 | -6/Extension | Spotted B-75 Beast 15481 | -6/Extension | Allies destroyed B-75 Beast 15568 | -6/Extension | Rescued a captive Derelict 15569 | -6/Extension | Rescued a captive Derelict 15607 | -6/Extension | Energy Cycler disabled 15607 | -6/Extension | Rescued a captive Derelict 15609 | -6/Extension | Rescued a captive Derelict 15647 | -6/Extension | Rescued A7 15780 | -6/Extension | Discovered exit to Factory (range 10) 15780 | -6/Extension | Discovered new exit (range 6) 15790 | -6/Extension | Identified exit to Cetus 15819 | -6/Extension | Entered Cetus 15819 | -6/Cetus | Accompanied by 9 allies (A7) 15824 | -6/Cetus | Acquired a Cetus Manufacturing Module code from A7 15847 | -6/Cetus | Spotted Cetus Guard 15847 | -6/Cetus | Spotted Cetus Guard 15851 | -6/Cetus | Spotted Cetus Guard 15851 | -6/Cetus | Spotted Cetus Guard 15859 | -6/Cetus | Allies destroyed Cetus Guard 15859 | -6/Cetus | Allies destroyed Cetus Guard 15864 | -6/Cetus | Allies destroyed Cetus Guard 15866 | -6/Cetus | Allies destroyed Cetus Guard 15941 | -6/Cetus | Started Cetus Manufacturing Module 15949 | -6/Cetus | Escorted A7 to Cetus Mainframe 15962 | -6/Cetus | Discovered new exit (range 15) 15966 | -6/Cetus | Manufactured an Enhanced Grunt 15991 | -6/Cetus | Manufactured an Enhanced Grunt 16016 | -6/Cetus | Manufactured an Enhanced Grunt 16022 | -6/Cetus | Discovered exit to Factory (range 22) 16023 | -6/Cetus | Spotted Cetus Guard 16023 | -6/Cetus | Spotted Cetus Guard 16026 | -6/Cetus | Allies destroyed Cetus Guard 16028 | -6/Cetus | Destroyed Cetus Guard 16030 | -6/Cetus | Spotted Cetus Guard 16030 | -6/Cetus | Spotted Cetus Guard 16030 | -6/Cetus | Allies destroyed Cetus Guard 16034 | -6/Cetus | Destroyed Cetus Guard 16041 | -6/Cetus | Manufactured an Enhanced Grunt 16045 | -6/Cetus | Met Revision 17 16066 | -6/Cetus | Manufactured an Enhanced Grunt 16070 | -6/Cetus | Identified exit to Archives 16106 | -6/Cetus | Entered Archives 16106 | -6/Archives | Accompanied by 11 allies (A7) 16111 | -6/Archives | Received a hacking code to weaken MAIN.C 16140 | -6/Archives | Discovered new exit (range 16) 16151 | -6/Archives | Discovered exit to Factory (range 14) 16189 | -6/Archives | Discovered new exit (range 15) 16418 | -6/Archives | Identified exit to Hub_04(d) 16465 | -6/Archives | Entered Hub_04(d) 16465 | -6/Hub_04(d) | Accompanied by 7 allies 16624 | -6/Hub_04(d) | Network Hub disabled 16624 | -6/Hub_04(d) | Network Hub disabled 16713 | -6/Hub_04(d) | Network Hub disabled 16774 | -6/Hub_04(d) | Entered Factory 16774 | -5/Factory | Evolved 2 slots: Propulsion x1, Utility x1 16872 | -5/Factory | Central database locked down 16923 | -5/Factory | Repaired Imp. Airjet 16948 | -5/Factory | Repaired Hvy. Missile Launcher 17061 | -5/Factory | Build established: Wizard-Mutant 17295 | -5/Factory | Identified exit to Upper Caves 17472 | -5/Factory | Repaired Exp. Utility Shielding 17517 | -5/Factory | Repaired Tri-rail Accelerator 17648 | -5/Factory | Repaired Lgt. Angular Momentum Engine 17672 | -5/Factory | Repaired Imp. Airjet 17697 | -5/Factory | Repaired Imp. Airjet 18023 | -5/Factory | Repaired Imp. Airjet 18040 | -5/Factory | Fabricated Exp. Hacking Suite (x1) 18136 | -5/Factory | Fabricated Exp. Hacking Suite? 18207 | -5/Factory | Fabricated Exp. Hacking Suite (x1) 18237 | -5/Factory | Repaired Imp. Airjet 18320 | -5/Factory | Discovered new exit (range 15) 18335 | -5/Factory | Identified exit to Factory 18723 | -5/Factory | Found Prototype Launcher 18723 | -5/Factory | Identified Mni. Smartbomb Launcher 18725 | -5/Factory | Found Mni. Smartbomb Launcher 19249 | -5/Factory | Entered Upper Caves 19431 | -5/Upper Caves | Identified exit to Upper Caves 19436 | -5/Upper Caves | Learned Factory terminal intel 19439 | -5/Upper Caves | Learned 8 Factory zone layouts 19439 | -5/Upper Caves | Learned Research garrison access intel 19839 | -5/Upper Caves | Attracted the attention of an 0b10 checkpoint 19919 | -5/Upper Caves | Entered another Upper Caves area 19980 | -5/Upper Caves | Learned location of 1 exit from Factory 19981 | -5/Upper Caves | Discovered exit to Factory (range 15) 20054 | -5/Upper Caves | Learned 4 Factory zone layouts 20129 | -5/Upper Caves | Discovered new exit (range 3) 20130 | -5/Upper Caves | Identified exit to Zhirov 20130 | -5/Upper Caves | Entered Zhirov 20130 | -5/Zhirov | Discovered new exit (range 3) 20137 | -5/Zhirov | Met Zhirov 20144 | -5/Zhirov | Learned location of Quarantine (-2) 20144 | -5/Zhirov | Learned location of Testing (-3) 20144 | -5/Zhirov | Learned location of Command (-1) 20146 | -5/Zhirov | Zhirov requested help retrieving the SGEMP Prototype 20152 | -5/Zhirov | Found Alien Artifact 20152 | -5/Zhirov | Identified Integrated Dissipator 20152 | -5/Zhirov | Installed Integrated Dissipator, increased core heat dissipation (+20) 20174 | -5/Zhirov | Found Alien Artifact 20207 | -5/Zhirov | Identified exit to Proximity Caves 20207 | -5/Zhirov | Entered Proximity Caves 20366 | -4/Proximity Caves | Received a Behemoth hack from an annoying Tinkerer 20476 | -4/Proximity Caves | Learned Research trap positions 20595 | -4/Proximity Caves | Entered Factory 20595 | -4/Factory | Evolved 2 slots: Power x1, Propulsion x1 20596 | -4/Factory | Identified exit to Upper Caves 20598 | -4/Factory | Identified exit to Research 20599 | -4/Factory | Loaded intel: 26 terminal locations 20628 | -4/Factory | Identified exit to Armory 20767 | -4/Factory | Repaired Imp. Airjet 21034 | -4/Factory | Repaired Imp. Airjet? 21329 | -4/Factory | Central database locked down 21337 | -4/Factory | Build established: Wizard-Sprinter 21465 | -4/Factory | Repaired Imp. Airjet 21503 | -4/Factory | Manually triggered Chute Trap 21503 | -4/Factory | Sucked down chute 21503 | -4/Factory | Entered Waste 21508 | -4/Waste | Spotted C-40 Crusher 21508 | -4/Waste | Spotted C-40 Crusher 21511 | -4/Waste | Spotted C-40 Crusher 21518 | -4/Waste | EMP discharged 21525 | -4/Waste | Spotted C-40 Crusher 21525 | -4/Waste | Spotted C-40 Crusher 21525 | -4/Waste | Spotted C-40 Crusher 21534 | -4/Waste | Discovered new exit (range 12) 21537 | -4/Waste | Identified exit to Factory 21537 | -4/Waste | Entered Factory 21595 | -4/Factory | 3 allies followed down the chute 21616 | -4/Factory | Discovered exit to Research (range 14) 21738 | -4/Factory | Destroyed 8 combat bots 21843 | -4/Factory | Fabricated Cmb. Linear Gravjet (x2) 22063 | -4/Factory | Identified Transdimensional Reconstructor 22112 | -4/Factory | Fabricated Cmb. Linear Gravjet (x2) 22157 | -4/Factory | Fabricated Cmb. Linear Gravjet (x2) 22179 | -4/Factory | Repaired Mni. Smartbomb Launcher 22238 | -4/Factory | Fabricated Assault Drone Bay (x1) 22276 | -4/Factory | Repaired Exp. Utility Shielding 22412 | -4/Factory | Build established: Wizard-Mutant 22658 | -4/Factory | Repaired Hyp. Coil Gun 22733 | -4/Factory | Repaired Cmb. Linear Gravjet 22792 | -4/Factory | Fabricated Exp. Signal Interpreter (x1) 23027 | -4/Factory | Discovered exit to Research (range 16) 23462 | -4/Factory | Fabricated Exp. Terrain Scanner (x1) 23504 | -4/Factory | Repaired Mni. Smartbomb Launcher 23512 | -4/Factory | Fabricated Exp. Terrain Scan Processor (x1) 23579 | -4/Factory | Repaired Cmb. Linear Gravjet 23662 | -4/Factory | Repaired Exp. Utility Shielding 23753 | -4/Factory | Repaired Mni. Smartbomb Launcher 23967 | -4/Factory | Entered Upper Caves 24016 | -4/Upper Caves | Encountered a Warlord checkpoint 24022 | -4/Upper Caves | Learned Research stockpile data 24134 | -4/Upper Caves | Discovered new exit (range 14) 24146 | -4/Upper Caves | Identified exit to Upper Caves 24146 | -4/Upper Caves | Entered another Upper Caves area 24182 | -4/Upper Caves | Discovered exit to Research (range 7) 24285 | -4/Upper Caves | Learned Research security intel 24585 | -4/Upper Caves | Identified exit to Warlord 24634 | -4/Upper Caves | Entered Warlord 24649 | -4/Warlord | System corruption cleaned by Quarantine Array 24712 | -4/Warlord | Received a Watcher feed algorithm from an ecstatic Tinkerer 24813 | -4/Warlord | Visited the Vortex Lab 24814 | -4/Warlord | Warlord's base attacked by MAIN.C 24816 | -4/Warlord | Found Prototype Energy Cannon 24816 | -4/Warlord | Identified Vortex Driver 24823 | -4/Warlord | Found Vortex Driver 24847 | -4/Warlord | Met Warlord 24852 | -4/Warlord | Opened Warlord's prototype stash 24854 | -4/Warlord | Found Prototype Device 24854 | -4/Warlord | Identified Exp. Focal Shield 24862 | -4/Warlord | Found Prototype Device 24862 | -4/Warlord | Identified Exp. Phase Shifter 24869 | -4/Warlord | Found Prototype Hackware 24869 | -4/Warlord | Identified System Mapper 24908 | -4/Warlord | Opened side exit 24999 | -4/Warlord | Discovered new exit (range 12) 25002 | -4/Warlord | Identified exit to Proximity Caves 25002 | -4/Warlord | Entered Proximity Caves 25271 | -3/Proximity Caves | Discovered exit to Research (range 5) 25278 | -3/Proximity Caves | Found Alien Artifact 25302 | -3/Proximity Caves | Entered Research 25302 | -3/Research | Evolved 2 slots: Utility x2 25303 | -3/Research | Loaded intel: 99 trap records 25306 | -3/Research | Loaded intel: 3 garrison access locations 25309 | -3/Research | Discovered new exit (range 23) 25313 | -3/Research | Discovered new exit (range 30) 25355 | -3/Research | Fabricated Tri-rail Accelerator (x1) 25502 | -3/Research | Revision forces began assault on 0b10 25546 | -3/Research | Met up with Revision 17++ 25559 | -3/Research | Identified exit to Testing 25627 | -3/Research | Central database locked down 25821 | -3/Research | Entered Testing 25857 | -3/Testing | Found Prototype Ballistic Gun 25857 | -3/Testing | Identified Hyp. Multirail 25917 | -3/Testing | Found Prototype Energy Cannon 25917 | -3/Testing | Identified Hpw. Disruptor Cannon 25961 | -3/Testing | Discovered new exit (range 27) 26052 | -3/Testing | Found Exp. Hacking Suite 26130 | -3/Testing | Found Prototype Energy Cannon 26130 | -3/Testing | Identified Cld. Nova Cannon 26151 | -3/Testing | Warped through subspace 26181 | -3/Testing | Lost 6 parts (2p2u2w) 26216 | -3/Testing | Repaired Cmb. Linear Gravjet 26254 | -3/Testing | Repaired Cmb. Linear Gravjet 26293 | -3/Testing | Repaired Adv. Cloaking Device 26321 | -3/Testing | Identified Dimensional Node Initializer 26382 | -3/Testing | Found Antimissile System 26465 | -3/Testing | Identified exit to Research 26465 | -3/Testing | Entered Research 26465 | -2/Research | Warlord forces began assault on 0b10 26465 | -2/Research | Evolved 2 slots: Power x1, Propulsion x1 26563 | -2/Research | Discovered new exit (range 20) 26575 | -2/Research | Research machine network offline 26811 | -2/Research | Borebot progress halted 26845 | -2/Research | Build established: Wizard-Scout 26878 | -2/Research | Met up with Warlord 26897 | -2/Research | Borebot progress halted 26915 | -2/Research | Discovered new exit (range 29) 26924 | -2/Research | Found Prototype Processor 26924 | -2/Research | Identified Exp. Core Analyzer 27048 | -2/Research | Borebot progress halted 27127 | -2/Research | Spotted Striker 27133 | -2/Research | Spotted Striker 27140 | -2/Research | Destroyed Striker 27143 | -2/Research | Destroyed Striker 27201 | -2/Research | Build established: Hacker-Mutant 27206 | -2/Research | Spotted Executioner 27239 | -2/Research | Found Exp. Targeting Computer 27308 | -2/Research | Exp. Hacking Suite fried by hacking feedback 27382 | -2/Research | Destroyed Executioner 27439 | -2/Research | Discovered new exit (range 8) 27445 | -2/Research | Identified exit to Quarantine 27446 | -2/Research | Entered Quarantine 27463 | -2/Quarantine | Cryocooling Duct disabled 27467 | -2/Quarantine | Cryocooling Duct disabled 27478 | -2/Quarantine | Ambient heat levels rising (+20) 27478 | -2/Quarantine | Non-combat units ordered to evacuate 27482 | -2/Quarantine | Ambient heat levels rising (+20) 27482 | -2/Quarantine | Combat units ordered to evacuate 27582 | -2/Quarantine | Quarantine Guard activated 27602 | -2/Quarantine | Repaired Cmb. Linear Gravjet 27623 | -2/Quarantine | Build established: Fabricator-Mutant 27748 | -2/Quarantine | Destroyed Quarantine Guard 27885 | -2/Quarantine | Spotted Quarantine Guard 27885 | -2/Quarantine | Destroyed Quarantine Guard 27929 | -2/Quarantine | Spotted Quarantine Guard 27938 | -2/Quarantine | Destroyed Quarantine Guard 27989 | -2/Quarantine | Destroyed Quarantine Guard 28044 | -2/Quarantine | Spotted Quarantine Guard 28093 | -2/Quarantine | Destroyed Quarantine Guard 28151 | -2/Quarantine | Spotted Quarantine Guard 28162 | -2/Quarantine | Destroyed Quarantine Guard 28290 | -2/Quarantine | Destroyed Quarantine Guard 28315 | -2/Quarantine | Destroyed Quarantine Guard 28342 | -2/Quarantine | Spotted Quarantine Guard 28361 | -2/Quarantine | Destroyed Quarantine Guard 28408 | -2/Quarantine | Spotted Quarantine Guard 28497 | -2/Quarantine | Destroyed Quarantine Guard 28546 | -2/Quarantine | Discovered new exit (range 17) 28553 | -2/Quarantine | Spotted Quarantine Guard 28568 | -2/Quarantine | Destroyed Quarantine Guard 28737 | -2/Quarantine | Repaired Adv. Cloaking Device 28775 | -2/Quarantine | Repaired Cmb. Linear Gravjet? 28865 | -2/Quarantine | Repaired Cmb. Linear Gravjet? 28874 | -2/Quarantine | Found Alien Artifact 28894 | -2/Quarantine | Found Antimissile System 28911 | -2/Quarantine | Identified Subatomic Replicator 28913 | -2/Quarantine | Identified exit to Access 29017 | -2/Quarantine | Repaired Cmb. Linear Gravjet 29062 | -2/Quarantine | Repaired Tri-rail Accelerator 29076 | -2/Quarantine | Build established: Hacker-Mutant 29100 | -2/Quarantine | Repaired Cmb. Linear Gravjet 29139 | -2/Quarantine | Repaired Cmb. Linear Gravjet 29416 | -2/Quarantine | Spotted Fortress 29442 | -2/Quarantine | Discovered new exit (range 5) 29442 | -2/Quarantine | Spotted Quarantine Guard 29443 | -2/Quarantine | Identified exit to Section 7 29444 | -2/Quarantine | Entered Section 7 29466 | -2/Section 7 | Spotted S7 Guard 29494 | -2/Section 7 | Destroyed S7 Guard 29539 | -2/Section 7 | Repaired Cmb. Linear Gravjet 29573 | -2/Section 7 | Found Alien Artifact 29586 | -2/Section 7 | Identified Core Regenerator 29634 | -2/Section 7 | Found Alien Artifact 29645 | -2/Section 7 | Identified Core Reset Matrix 29755 | -2/Section 7 | Discovered exit to Access (range 19) 29882 | -2/Section 7 | Destroyed B-90 Cyclops 29899 | -2/Section 7 | Spotted S7 Guard 29911 | -2/Section 7 | Destroyed S7 Guard 29917 | -2/Section 7 | Found Alien Artifact 29930 | -2/Section 7 | Identified Navigation Efficiency Matrix 29939 | -2/Section 7 | Initialized slip node 30047 | -2/Section 7 | Found Alien Artifact 30086 | -2/Section 7 | Identified Integrity Redistributor 30619 | -2/Section 7 | Build established: Machinist-Scout 30643 | -2/Section 7 | Scanned by Researcher 30644 | -2/Section 7 | Intercept squad dispatched 30653 | -2/Section 7 | Found Integrity Redistributor 30659 | -2/Section 7 | Spotted Tracker 30660 | -2/Section 7 | Spotted Tracker 30667 | -2/Section 7 | Destroyed Tracker 30680 | -2/Section 7 | Destroyed Tracker 30689 | -2/Section 7 | Spotted Combat Programmer 30695 | -2/Section 7 | Spotted Combat Programmer 30699 | -2/Section 7 | System corruption reached 10% 30715 | -2/Section 7 | Destroyed Combat Programmer 30718 | -2/Section 7 | Core integrity fell below 50% 30770 | -2/Section 7 | Core integrity fell below 20% 30781 | -2/Section 7 | Destroyed by C-57 Dissector with Dual-blade Saw Last Messages --------------- 30769_ Cmb. Linear Gravjet severed. 30769_ U-05 Engineer lays Concrete. 30770_ Extracted 15 matter. 30770_ C-65 Expert calibrates the Power Cell. 30770_ U-05 Engineer lays Concrete. 30771_ Held in stasis. 30771_ C-65 Expert is analyzing... 30771_ U-05 Engineer lays Concrete. 30773_ C-65 Expert calibrates the Power Cell. 30774_ System corrupted: Component data lost. 30775_ Held in stasis. 30776_ Exp. Terrain Scanner severed. 30776_ C-65 Expert calibrates the Power Cell. 30777_ C-65 Expert calibrates the Hull. 30778_ Exp. Sensor Array destroyed. 30778_ 2N-1CE's Frost Array destroyed. 30779_ Held in stasis. 30779_ C-65 Expert is analyzing... 30780_ Exp. Targeting Computer destroyed. 30780_ C-65 Expert calibrates the Power Cell. Map ----- +----------------------------------------------------+ | | | | | | | ?????????#?????#?#?##?????????#??????#???????????? | | ?????????#???????????????????????#???????????????? | | ????#???????????????????????#???????#????????????? | | ????#????????????#????#???????????#??????????????? | | ???????##???????#??????????#?????????#???????????? | | ???????????#????????????#?#???????????#??????????? | | #####???????????????????????#????????????????????? | | ???? ??"????????????T ??#????"?????????????? | | ????????????""???? ????? ????"????????? | | ?????????? " #### #????????????"?????? | | ??????? #??????????#???????? | | ???? ??????? ?????????? | | ""?? ?? ??????????????? | | " ?" ????? ?????????????? | | " ?"" ????????????? ?????? | | " " "" ??????????????? ?? ? | | " "" "????????????????????? | | " " """ "?????????? ?????? ?? | | "" " "" "??????? ????????????? | | " " " """" "??"?? ?????????? | | " " ??? "" " ???? ???? | | "c ""????" ????????? | | """" " "????" @ ???????? | | ???"""" " """""""ccc k "?????"?????? | | """" !]=s! c "???"?????? | | !w!= "??????????? | | !! " c ?????????? | | """" """ ??????????? | | ???"""" " " ??????? ??? | | ???" """"" c ? ??????????? | | ? """ """" " " " ????????????? | | """?" ?? " " " ??????????????? | | ? c " " "?"????????? ???????? | | " """"""???" ??????????"???" | | """ "?????"???????????? ????? | | "" T "?????????????????""????? | | "" ? c "???? ??????????????????? | | ?"? "" ?? ????????????"???????? | | ?? ?" """ "" ???? ? ?? ?? ????? ??????? | | ????? ??" ? ?????????????? ???????????? | | ?????" ??? ""?"???????"????????????????? ??????? | | ?? ? ??? ?????????"?????????????????"?????????? | | ?? ???????? ?????""????"?????????????????"???????? | | ??????? ? ???????" ?? ????? ??? ????? ???"???????? | | ????????????????"?? ? ?????????????????? ????????? | | ????????? ??? ????????????? ?????????????????????? | | ? ???????????? ?????? ???????????????????????????? | +----------------------------------------------------+ Best States ------------- Heat Dissipation 169 Energy Generation 73 Energy Capacity 690 Matter Stores 500 Matter Capacity 500 Sight Range 16 Robot Scan Range 20 Terrain Scan Range 30 Terrain Scan Density 1010 Jamming Range 14 Cloak Strength 4 Additional Mass Support 9 EM Shielding 2 Armor Coverage 450 Resistance: KI 25 Utility Shielding 90 Weapon Cycling 25 Phase Shifting 20 Evasion (%) 91 Targeting Accuracy 12 Core Analysis 8 Armor Integrity Analysis 40 Recoil Reduction 6 Offensive Hacking 109 Defensive Hacking 24 Authchip Count 8 Trap Extractor Capacity 8 Item Schematics ----------------- Exp. Sensor Array | -9/Materials | Scanalyzed Hcp. Storage Unit | -9/Materials | Hacked Hacking Suite | -9/Materials | Scanalyzed Aerolev Unit | -7/Factory | Scanalyzed Mni. Grenade Launcher | -7/Factory | Scanalyzed Combat Drone Bay | -7/Data Miner | Free Lgt. Regenerative Plating | -7/Data Miner | Free Cld. Aerolev Unit | -7/Data Miner | Free Exp. Power Shielding | -7/Data Miner | Free Antimatter Cannon | -7/Data Miner | Free Antigrav System | -7/Data Miner | Free Remote Force Field | -7/Data Miner | Free Lance | -7/Data Miner | Free Variable Charge Gun | -7/Data Miner | Free Adv. Datajack | -7/Data Miner | Free Adv. Salvage Targeting Computer | -7/Data Miner | Free Exp. Utility Shielding | -6/Factory | Hacked Tri-rail Accelerator | -6/Factory | Hacked Imp. Airjet | -6/Factory | Scanalyzed Exp. Targeting Computer | -6/Factory | Scanalyzed Imp. Medium Armor Plating | -6/Factory | Scanalyzed Cloaking Device | -6/Factory | Scanalyzed Quantum Capacitor | -6/Hub_04(d) | Hacked Exp. Hacking Suite | -5/Factory | Hacked Imp. Transmission Jammer | -5/Factory | Scanalyzed Adv. Trap Extractor | -5/Factory | Scanalyzed Centrium Medium Armor Plating | -5/Factory | Scanalyzed Imp. Cloaking Device | -5/Factory | Scanalyzed Adv. Energy Well | -5/Factory | Scanalyzed Hvy. Missile Launcher | -5/Factory | Scanalyzed Mic. Nuclear Core | -5/Factory | Scanalyzed Micro-nuke Launcher | -5/Factory | Hacked Fusion Bomb Launcher | -5/Factory | Hacked Particle Reactor | -5/Factory | Hacked Adv. KE Penetrator | -5/Factory | Hacked Linear Gravjet | -5/Factory | Hacked Assault Drone Bay | -5/Zhirov | Free Exp. Heat Sink | -5/Zhirov | Free Exp. Optical Array | -5/Zhirov | Free Imp. Arc Thrower | -5/Zhirov | Free Point Singularity Launcher | -4/Factory | Hacked Exp. Terrain Scan Processor | -4/Factory | Hacked Enh. Nova Cannon | -4/Factory | Hacked Mic. Antimatter Reactor | -4/Factory | Hacked Adv. Heavy Siege Treads | -4/Factory | Hacked Electron Diverter | -4/Factory | Hacked Linear Accelerator | -4/Factory | Hacked Centrium Wheel | -4/Factory | Hacked Cmb. Linear Gravjet | -4/Factory | Hacked Cmb. Antigrav System | -4/Factory | Hacked Adv. Cloaking Device | -4/Factory | Scanalyzed Hyp. Coil Gun | -4/Factory | Scanalyzed Imp. Armor Integrity Analyzer | -4/Factory | Scanalyzed Fusion Compressor | -4/Factory | Scanalyzed Matter Neutralizer | -4/Factory | Hacked Exp. Signal Interpreter | -4/Factory | Hacked Exp. Weapon Shielding | -4/Factory | Hacked Adv. Power Amplifier | -4/Factory | Scanalyzed Imp. Fusion Compressor | -4/Factory | Scanalyzed Imp. Reaction Control System | -4/Factory | Scanalyzed Lgt. Particle Reactor | -4/Factory | Hacked Lgt. Quantum Reactor | -4/Factory | Hacked Exp. Terrain Scanner | -4/Factory | Hacked Prc. Energy Filter | -4/Factory | Hacked Prc. Matter Filter | -4/Factory | Hacked Point Defense Array | -4/Factory | Scanalyzed Adv. Force Field | -3/Testing | Hacked Singularity Reactor | -3/Testing | Hacked Adv. Particle Accelerator | -3/Testing | Hacked Exp. Shield Generator | -2/Quarantine | Hacked Graviton Reactor | -2/Quarantine | Archive Imp. Quantum Reactor | -2/Quarantine | Archive Cld. Q-thruster | -2/Quarantine | Archive Exp. ECM Suite | -2/Quarantine | Archive Com. Linear Accelerator | -2/Quarantine | Archive Hvy. Tesla Rifle | -2/Quarantine | Archive Adv. Quantum Shading Machine | -2/Quarantine | Scanalyzed Exp. Energy Well | -2/Quarantine | Archive Hvy. Antimatter Reactor | -2/Quarantine | Archive Lgt. Antimatter Cannon | -2/Quarantine | Archive Exp. Core Analyzer | -2/Quarantine | Archive Gravity Flail | -2/Quarantine | Archive Exp. Focal Shield | -2/Quarantine | Archive Proton Burst Cannon | -2/Quarantine | Archive Cld. Nuclear Pulse Thruster | -2/Quarantine | Archive Exp. Matter Compressor | -2/Quarantine | Archive Kinetic Spear | -2/Quarantine | Archive Enh. Coil Gun | -2/Quarantine | Archive Gravity Neutralizer | -2/Quarantine | Archive Adv. Plasma Rifle | -2/Quarantine | Archive Helical Railgun | -2/Quarantine | Archive Gui. Micro-nuke Launcher | -2/Section 7 | Hacked Exp. Reaction Control System | -2/Section 7 | Scanalyzed Antimissile System | -2/Section 7 | Scanalyzed Cld. Linear Gravjet | -2/Section 7 | Archive Hvy. Dispersion Rifle | -2/Section 7 | Archive Diametric Drive | -2/Section 7 | Archive Enh. Gamma Bomb Array | -2/Section 7 | Archive Exp. Target Analyzer | -2/Section 7 | Archive Robot Schematics ------------------ L-41 Fighter | -7/Data Miner | Free H-66 Slayer | -7/Data Miner | Free X-67 Chaingunner | -7/Data Miner | Free A-15 Conveyor | -7/Data Miner | Free G-67 Veteran | -2/Quarantine | Archive K-01 Serf | -2/Quarantine | Archive G-73 Enforcer | -2/Quarantine | Archive L-61 Swordsman | -2/Quarantine | Archive C-65 Expert | -2/Quarantine | Archive P-80 Master | -2/Quarantine | Archive T-07 Excavator | -2/Quarantine | Archive E-15 Imp | -2/Quarantine | Archive R-06 Scavenger | -2/Quarantine | Archive B-74 Champion | -2/Section 7 | Archive Fabricated ------------ Lance | x2 | -6/Factory | Authchip Exp. Utility Shielding | x1 | -6/Factory | Authchip Imp. Heavy Siege Treads | x2 | -6/Factory | Preloaded Combat Drone Bay | x1 | -6/Factory | Authchip Tri-rail Accelerator | x1 | -6/Factory | Authchip Exp. Hacking Suite | x1 | -5/Factory | Authchip Exp. Hacking Suite | x1 | -5/Factory | Authchip Exp. Hacking Suite | x1 | -5/Factory | Authchip Cmb. Linear Gravjet | x2 | -4/Factory | Authchip Cmb. Linear Gravjet | x2 | -4/Factory | Authchip Cmb. Linear Gravjet | x2 | -4/Factory | Authchip Assault Drone Bay | x1 | -4/Factory | Authchip Exp. Signal Interpreter | x1 | -4/Factory | Authchip Exp. Terrain Scanner | x1 | -4/Factory | Authchip Exp. Terrain Scan Processor | x1 | -4/Factory | Authchip Tri-rail Accelerator | x1 | -3/Research | Authchip Alien Tech Used ----------------- Integrated Dissipator Transdimensional Reconstructor Dimensional Node Initializer Achievements -------------- Revolutionary Research Challenges ------------ None Game ------ Seed IntegratedQuantumDriver Manual? 0 Play Time 07:02:52 Cumulative 426.2 hours Start 2022.05.16 @ 18:11:39 End 2022.05.18 @ 19:50:39 Sessions 31 Manual Loads 0 Difficulty Rogue Special Mode None Game No. 409 Rogue 409 Adventurer 0 Explorer 0 Win Type - Total 21 Types 13/2/3/2/0/0/0/1/0 Lore% 92 Gallery% 91 Achievement% 76 Wizard Run 0 Options --------- ASCII 0 Keyboard 0 Movement Arrows Keybinds 0 Fullscreen 1 Font 18/Smallcaps Map View 76x50 Tactical HUD 1 Map Filters NONE Filters NONE Steam 1 RUN: 7f2ea00e-67c6-4f78-9567-e7a792986ba2